{"text_format":"3","workbook":"xlsx","n_sheets":2,"sheets":["Horário de Aulas","Lista de Aulas"],"not_rendered":{"defined_names":17},"read":"whole","date_system":"1900"}

{"sheet":"Horário de Aulas","index":0,"n_rows":56,"n_cols":9,"rows_kept":56,"merged":[[0,1,1,5],[0,8,1,8]]}
[null,"HORÁRIO DE AULAS",{"$nulls":4},"INÍCIO DO HORÁRIO","INTERVALO DE TEMPO","Lista de Aulas"]
[{"$nulls":6},"08:00:00","15 MIN"]
[null,"HORA","DOMINGO","SEGUNDA-FEIRA","TERÇA-FEIRA","QUARTA-FEIRA","QUINTA-FEIRA","SEXTA-FEIRA","SÁBADO"]
[null,{"$f":"InícioDoHorário","v":"08:00:00"},{"$f":"IFERROR(INDEX(ListaDeAulas[],MATCH(SUMPRODUCT((ListaDeAulas[DIA]=HorárioDeAulas[[#Headers],[DOMINGO]])*(ROUNDDOWN($B4,10)>=ROUNDDOWN(ListaDeAulas[HORA DE INÍCIO],10))*($B4<=ListaDeAulas[HORA DE FIM]),ListaDeAulas[EXCLUSIVO]),ListaDeAulas[EXCLUSIVO],0),2),0)","v":0},{"$f":"IFERROR(INDEX(ListaDeAulas[],MATCH(SUMPRODUCT((ListaDeAulas[DIA]=HorárioDeAulas[[#Headers],[SEGUNDA-FEIRA]])*(ROUNDDOWN($B4,10)>=ROUNDDOWN(ListaDeAulas[HORA DE INÍCIO],10))*($B4<=ListaDeAulas[HORA DE FIM]),ListaDeAulas[EXCLUSIVO]),ListaDeAulas[EXCLUSIVO],0),2),0)","v":0},{"$f":"IFERROR(INDEX(ListaDeAulas[],MATCH(SUMPRODUCT((ListaDeAulas[DIA]=HorárioDeAulas[[#Headers],[TERÇA-FEIRA]])*(ROUNDDOWN($B4,10)>=ROUNDDOWN(ListaDeAulas[HORA DE INÍCIO],10))*($B4<=ListaDeAulas[HORA DE FIM]),ListaDeAulas[EXCLUSIVO]),ListaDeAulas[EXCLUSIVO],0),2),0)","v":0},{"$f":"IFERROR(INDEX(ListaDeAulas[],MATCH(SUMPRODUCT((ListaDeAulas[DIA]=HorárioDeAulas[[#Headers],[QUARTA-FEIRA]])*(ROUNDDOWN($B4,10)>=ROUNDDOWN(ListaDeAulas[HORA DE INÍCIO],10))*($B4<=ListaDeAulas[HORA DE FIM]),ListaDeAulas[EXCLUSIVO]),ListaDeAulas[EXCLUSIVO],0),2),0)","v":0},{"$f":"IFERROR(INDEX(ListaDeAulas[],MATCH(SUMPRODUCT((ListaDeAulas[DIA]=HorárioDeAulas[[#Headers],[QUINTA-FEIRA]])*(ROUNDDOWN($B4,10)>=ROUNDDOWN(ListaDeAulas[HORA DE INÍCIO],10))*($B4<=ListaDeAulas[HORA DE FIM]),ListaDeAulas[EXCLUSIVO]),ListaDeAulas[EXCLUSIVO],0),2),0)","v":0},{"$f":"IFERROR(INDEX(ListaDeAulas[],MATCH(SUMPRODUCT((ListaDeAulas[DIA]=HorárioDeAulas[[#Headers],[SEXTA-FEIRA]])*(ROUNDDOWN($B4,10)>=ROUNDDOWN(ListaDeAulas[HORA DE INÍCIO],10))*($B4<=ListaDeAulas[HORA DE FIM]),ListaDeAulas[EXCLUSIVO]),ListaDeAulas[EXCLUSIVO],0),2),0)","v":0},{"$f":"IFERROR(INDEX(ListaDeAulas[],MATCH(SUMPRODUCT((ListaDeAulas[DIA]=HorárioDeAulas[[#Headers],[SÁBADO]])*(ROUNDDOWN($B4,10)>=ROUNDDOWN(ListaDeAulas[HORA DE INÍCIO],10))*($B4<=ListaDeAulas[HORA DE FIM]),ListaDeAulas[EXCLUSIVO]),ListaDeAulas[EXCLUSIVO],0),2),0)","v":0}]
[null,{"$f":"B4+Incremento","v":"08:15:00"},{"$f":"IFERROR(INDEX(ListaDeAulas[],MATCH(SUMPRODUCT((ListaDeAulas[DIA]=HorárioDeAulas[[#Headers],[DOMINGO]])*(ROUNDDOWN($B5,10)>=ROUNDDOWN(ListaDeAulas[HORA DE INÍCIO],10))*($B5<=ListaDeAulas[HORA DE FIM]),ListaDeAulas[EXCLUSIVO]),ListaDeAulas[EXCLUSIVO],0),2),0)","v":0},{"$f":"IFERROR(INDEX(ListaDeAulas[],MATCH(SUMPRODUCT((ListaDeAulas[DIA]=HorárioDeAulas[[#Headers],[SEGUNDA-FEIRA]])*(ROUNDDOWN($B5,10)>=ROUNDDOWN(ListaDeAulas[HORA DE INÍCIO],10))*($B5<=ListaDeAulas[HORA DE FIM]),ListaDeAulas[EXCLUSIVO]),ListaDeAulas[EXCLUSIVO],0),2),0)","v":"MAT"},{"$f":"IFERROR(INDEX(ListaDeAulas[],MATCH(SUMPRODUCT((ListaDeAulas[DIA]=HorárioDeAulas[[#Headers],[TERÇA-FEIRA]])*(ROUNDDOWN($B5,10)>=ROUNDDOWN(ListaDeAulas[HORA DE INÍCIO],10))*($B5<=ListaDeAulas[HORA DE FIM]),ListaDeAulas[EXCLUSIVO]),ListaDeAulas[EXCLUSIVO],0),2),0)","v":0},{"$f":"IFERROR(INDEX(ListaDeAulas[],MATCH(SUMPRODUCT((ListaDeAulas[DIA]=HorárioDeAulas[[#Headers],[QUARTA-FEIRA]])*(ROUNDDOWN($B5,10)>=ROUNDDOWN(ListaDeAulas[HORA DE INÍCIO],10))*($B5<=ListaDeAulas[HORA DE FIM]),ListaDeAulas[EXCLUSIVO]),ListaDeAulas[EXCLUSIVO],0),2),0)","v":"MAT"},{"$f":"IFERROR(INDEX(ListaDeAulas[],MATCH(SUMPRODUCT((ListaDeAulas[DIA]=HorárioDeAulas[[#Headers],[QUINTA-FEIRA]])*(ROUNDDOWN($B5,10)>=ROUNDDOWN(ListaDeAulas[HORA DE INÍCIO],10))*($B5<=ListaDeAulas[HORA DE FIM]),ListaDeAulas[EXCLUSIVO]),ListaDeAulas[EXCLUSIVO],0),2),0)","v":0},{"$f":"IFERROR(INDEX(ListaDeAulas[],MATCH(SUMPRODUCT((ListaDeAulas[DIA]=HorárioDeAulas[[#Headers],[SEXTA-FEIRA]])*(ROUNDDOWN($B5,10)>=ROUNDDOWN(ListaDeAulas[HORA DE INÍCIO],10))*($B5<=ListaDeAulas[HORA DE FIM]),ListaDeAulas[EXCLUSIVO]),ListaDeAulas[EXCLUSIVO],0),2),0)","v":"MAT"},{"$f":"IFERROR(INDEX(ListaDeAulas[],MATCH(SUMPRODUCT((ListaDeAulas[DIA]=HorárioDeAulas[[#Headers],[SÁBADO]])*(ROUNDDOWN($B5,10)>=ROUNDDOWN(ListaDeAulas[HORA DE INÍCIO],10))*($B5<=ListaDeAulas[HORA DE FIM]),ListaDeAulas[EXCLUSIVO]),ListaDeAulas[EXCLUSIVO],0),2),0)","v":0}]
[null,"08:30:00",{"$f":"IFERROR(INDEX(ListaDeAulas[],MATCH(SUMPRODUCT((ListaDeAulas[DIA]=HorárioDeAulas[[#Headers],[DOMINGO]])*(ROUNDDOWN($B6,10)>=ROUNDDOWN(ListaDeAulas[HORA DE INÍCIO],10))*($B6<=ListaDeAulas[HORA DE FIM]),ListaDeAulas[EXCLUSIVO]),ListaDeAulas[EXCLUSIVO],0),2),0)","v":0},{"$f":"IFERROR(INDEX(ListaDeAulas[],MATCH(SUMPRODUCT((ListaDeAulas[DIA]=HorárioDeAulas[[#Headers],[SEGUNDA-FEIRA]])*(ROUNDDOWN($B6,10)>=ROUNDDOWN(ListaDeAulas[HORA DE INÍCIO],10))*($B6<=ListaDeAulas[HORA DE FIM]),ListaDeAulas[EXCLUSIVO]),ListaDeAulas[EXCLUSIVO],0),2),0)","v":"MAT"},{"$f":"IFERROR(INDEX(ListaDeAulas[],MATCH(SUMPRODUCT((ListaDeAulas[DIA]=HorárioDeAulas[[#Headers],[TERÇA-FEIRA]])*(ROUNDDOWN($B6,10)>=ROUNDDOWN(ListaDeAulas[HORA DE INÍCIO],10))*($B6<=ListaDeAulas[HORA DE FIM]),ListaDeAulas[EXCLUSIVO]),ListaDeAulas[EXCLUSIVO],0),2),0)","v":0},{"$f":"IFERROR(INDEX(ListaDeAulas[],MATCH(SUMPRODUCT((ListaDeAulas[DIA]=HorárioDeAulas[[#Headers],[QUARTA-FEIRA]])*(ROUNDDOWN($B6,10)>=ROUNDDOWN(ListaDeAulas[HORA DE INÍCIO],10))*($B6<=ListaDeAulas[HORA DE FIM]),ListaDeAulas[EXCLUSIVO]),ListaDeAulas[EXCLUSIVO],0),2),0)","v":"MAT"},{"$f":"IFERROR(INDEX(ListaDeAulas[],MATCH(SUMPRODUCT((ListaDeAulas[DIA]=HorárioDeAulas[[#Headers],[QUINTA-FEIRA]])*(ROUNDDOWN($B6,10)>=ROUNDDOWN(ListaDeAulas[HORA DE INÍCIO],10))*($B6<=ListaDeAulas[HORA DE FIM]),ListaDeAulas[EXCLUSIVO]),ListaDeAulas[EXCLUSIVO],0),2),0)","v":0},{"$f":"IFERROR(INDEX(ListaDeAulas[],MATCH(SUMPRODUCT((ListaDeAulas[DIA]=HorárioDeAulas[[#Headers],[SEXTA-FEIRA]])*(ROUNDDOWN($B6,10)>=ROUNDDOWN(ListaDeAulas[HORA DE INÍCIO],10))*($B6<=ListaDeAulas[HORA DE FIM]),ListaDeAulas[EXCLUSIVO]),ListaDeAulas[EXCLUSIVO],0),2),0)","v":"MAT"},{"$f":"IFERROR(INDEX(ListaDeAulas[],MATCH(SUMPRODUCT((ListaDeAulas[DIA]=HorárioDeAulas[[#Headers],[SÁBADO]])*(ROUNDDOWN($B6,10)>=ROUNDDOWN(ListaDeAulas[HORA DE INÍCIO],10))*($B6<=ListaDeAulas[HORA DE FIM]),ListaDeAulas[EXCLUSIVO]),ListaDeAulas[EXCLUSIVO],0),2),0)","v":0}]
[null,"08:45:00",{"$f":"IFERROR(INDEX(ListaDeAulas[],MATCH(SUMPRODUCT((ListaDeAulas[DIA]=HorárioDeAulas[[#Headers],[DOMINGO]])*(ROUNDDOWN($B7,10)>=ROUNDDOWN(ListaDeAulas[HORA DE INÍCIO],10))*($B7<=ListaDeAulas[HORA DE FIM]),ListaDeAulas[EXCLUSIVO]),ListaDeAulas[EXCLUSIVO],0),2),0)","v":0},{"$f":"IFERROR(INDEX(ListaDeAulas[],MATCH(SUMPRODUCT((ListaDeAulas[DIA]=HorárioDeAulas[[#Headers],[SEGUNDA-FEIRA]])*(ROUNDDOWN($B7,10)>=ROUNDDOWN(ListaDeAulas[HORA DE INÍCIO],10))*($B7<=ListaDeAulas[HORA DE FIM]),ListaDeAulas[EXCLUSIVO]),ListaDeAulas[EXCLUSIVO],0),2),0)","v":"MAT"},{"$f":"IFERROR(INDEX(ListaDeAulas[],MATCH(SUMPRODUCT((ListaDeAulas[DIA]=HorárioDeAulas[[#Headers],[TERÇA-FEIRA]])*(ROUNDDOWN($B7,10)>=ROUNDDOWN(ListaDeAulas[HORA DE INÍCIO],10))*($B7<=ListaDeAulas[HORA DE FIM]),ListaDeAulas[EXCLUSIVO]),ListaDeAulas[EXCLUSIVO],0),2),0)","v":0},{"$f":"IFERROR(INDEX(ListaDeAulas[],MATCH(SUMPRODUCT((ListaDeAulas[DIA]=HorárioDeAulas[[#Headers],[QUARTA-FEIRA]])*(ROUNDDOWN($B7,10)>=ROUNDDOWN(ListaDeAulas[HORA DE INÍCIO],10))*($B7<=ListaDeAulas[HORA DE FIM]),ListaDeAulas[EXCLUSIVO]),ListaDeAulas[EXCLUSIVO],0),2),0)","v":"MAT"},{"$f":"IFERROR(INDEX(ListaDeAulas[],MATCH(SUMPRODUCT((ListaDeAulas[DIA]=HorárioDeAulas[[#Headers],[QUINTA-FEIRA]])*(ROUNDDOWN($B7,10)>=ROUNDDOWN(ListaDeAulas[HORA DE INÍCIO],10))*($B7<=ListaDeAulas[HORA DE FIM]),ListaDeAulas[EXCLUSIVO]),ListaDeAulas[EXCLUSIVO],0),2),0)","v":0},{"$f":"IFERROR(INDEX(ListaDeAulas[],MATCH(SUMPRODUCT((ListaDeAulas[DIA]=HorárioDeAulas[[#Headers],[SEXTA-FEIRA]])*(ROUNDDOWN($B7,10)>=ROUNDDOWN(ListaDeAulas[HORA DE INÍCIO],10))*($B7<=ListaDeAulas[HORA DE FIM]),ListaDeAulas[EXCLUSIVO]),ListaDeAulas[EXCLUSIVO],0),2),0)","v":"MAT"},{"$f":"IFERROR(INDEX(ListaDeAulas[],MATCH(SUMPRODUCT((ListaDeAulas[DIA]=HorárioDeAulas[[#Headers],[SÁBADO]])*(ROUNDDOWN($B7,10)>=ROUNDDOWN(ListaDeAulas[HORA DE INÍCIO],10))*($B7<=ListaDeAulas[HORA DE FIM]),ListaDeAulas[EXCLUSIVO]),ListaDeAulas[EXCLUSIVO],0),2),0)","v":0}]
[null,"09:00:00",{"$f":"IFERROR(INDEX(ListaDeAulas[],MATCH(SUMPRODUCT((ListaDeAulas[DIA]=HorárioDeAulas[[#Headers],[DOMINGO]])*(ROUNDDOWN($B8,10)>=ROUNDDOWN(ListaDeAulas[HORA DE INÍCIO],10))*($B8<=ListaDeAulas[HORA DE FIM]),ListaDeAulas[EXCLUSIVO]),ListaDeAulas[EXCLUSIVO],0),2),0)","v":0},{"$f":"IFERROR(INDEX(ListaDeAulas[],MATCH(SUMPRODUCT((ListaDeAulas[DIA]=HorárioDeAulas[[#Headers],[SEGUNDA-FEIRA]])*(ROUNDDOWN($B8,10)>=ROUNDDOWN(ListaDeAulas[HORA DE INÍCIO],10))*($B8<=ListaDeAulas[HORA DE FIM]),ListaDeAulas[EXCLUSIVO]),ListaDeAulas[EXCLUSIVO],0),2),0)","v":"MAT"},{"$f":"IFERROR(INDEX(ListaDeAulas[],MATCH(SUMPRODUCT((ListaDeAulas[DIA]=HorárioDeAulas[[#Headers],[TERÇA-FEIRA]])*(ROUNDDOWN($B8,10)>=ROUNDDOWN(ListaDeAulas[HORA DE INÍCIO],10))*($B8<=ListaDeAulas[HORA DE FIM]),ListaDeAulas[EXCLUSIVO]),ListaDeAulas[EXCLUSIVO],0),2),0)","v":0},{"$f":"IFERROR(INDEX(ListaDeAulas[],MATCH(SUMPRODUCT((ListaDeAulas[DIA]=HorárioDeAulas[[#Headers],[QUARTA-FEIRA]])*(ROUNDDOWN($B8,10)>=ROUNDDOWN(ListaDeAulas[HORA DE INÍCIO],10))*($B8<=ListaDeAulas[HORA DE FIM]),ListaDeAulas[EXCLUSIVO]),ListaDeAulas[EXCLUSIVO],0),2),0)","v":"MAT"},{"$f":"IFERROR(INDEX(ListaDeAulas[],MATCH(SUMPRODUCT((ListaDeAulas[DIA]=HorárioDeAulas[[#Headers],[QUINTA-FEIRA]])*(ROUNDDOWN($B8,10)>=ROUNDDOWN(ListaDeAulas[HORA DE INÍCIO],10))*($B8<=ListaDeAulas[HORA DE FIM]),ListaDeAulas[EXCLUSIVO]),ListaDeAulas[EXCLUSIVO],0),2),0)","v":0},{"$f":"IFERROR(INDEX(ListaDeAulas[],MATCH(SUMPRODUCT((ListaDeAulas[DIA]=HorárioDeAulas[[#Headers],[SEXTA-FEIRA]])*(ROUNDDOWN($B8,10)>=ROUNDDOWN(ListaDeAulas[HORA DE INÍCIO],10))*($B8<=ListaDeAulas[HORA DE FIM]),ListaDeAulas[EXCLUSIVO]),ListaDeAulas[EXCLUSIVO],0),2),0)","v":"MAT"},{"$f":"IFERROR(INDEX(ListaDeAulas[],MATCH(SUMPRODUCT((ListaDeAulas[DIA]=HorárioDeAulas[[#Headers],[SÁBADO]])*(ROUNDDOWN($B8,10)>=ROUNDDOWN(ListaDeAulas[HORA DE INÍCIO],10))*($B8<=ListaDeAulas[HORA DE FIM]),ListaDeAulas[EXCLUSIVO]),ListaDeAulas[EXCLUSIVO],0),2),0)","v":0}]
[null,"09:15:00",{"$f":"IFERROR(INDEX(ListaDeAulas[],MATCH(SUMPRODUCT((ListaDeAulas[DIA]=HorárioDeAulas[[#Headers],[DOMINGO]])*(ROUNDDOWN($B9,10)>=ROUNDDOWN(ListaDeAulas[HORA DE INÍCIO],10))*($B9<=ListaDeAulas[HORA DE FIM]),ListaDeAulas[EXCLUSIVO]),ListaDeAulas[EXCLUSIVO],0),2),0)","v":0},{"$f":"IFERROR(INDEX(ListaDeAulas[],MATCH(SUMPRODUCT((ListaDeAulas[DIA]=HorárioDeAulas[[#Headers],[SEGUNDA-FEIRA]])*(ROUNDDOWN($B9,10)>=ROUNDDOWN(ListaDeAulas[HORA DE INÍCIO],10))*($B9<=ListaDeAulas[HORA DE FIM]),ListaDeAulas[EXCLUSIVO]),ListaDeAulas[EXCLUSIVO],0),2),0)","v":"MAT"},{"$f":"IFERROR(INDEX(ListaDeAulas[],MATCH(SUMPRODUCT((ListaDeAulas[DIA]=HorárioDeAulas[[#Headers],[TERÇA-FEIRA]])*(ROUNDDOWN($B9,10)>=ROUNDDOWN(ListaDeAulas[HORA DE INÍCIO],10))*($B9<=ListaDeAulas[HORA DE FIM]),ListaDeAulas[EXCLUSIVO]),ListaDeAulas[EXCLUSIVO],0),2),0)","v":0},{"$f":"IFERROR(INDEX(ListaDeAulas[],MATCH(SUMPRODUCT((ListaDeAulas[DIA]=HorárioDeAulas[[#Headers],[QUARTA-FEIRA]])*(ROUNDDOWN($B9,10)>=ROUNDDOWN(ListaDeAulas[HORA DE INÍCIO],10))*($B9<=ListaDeAulas[HORA DE FIM]),ListaDeAulas[EXCLUSIVO]),ListaDeAulas[EXCLUSIVO],0),2),0)","v":"MAT"},{"$f":"IFERROR(INDEX(ListaDeAulas[],MATCH(SUMPRODUCT((ListaDeAulas[DIA]=HorárioDeAulas[[#Headers],[QUINTA-FEIRA]])*(ROUNDDOWN($B9,10)>=ROUNDDOWN(ListaDeAulas[HORA DE INÍCIO],10))*($B9<=ListaDeAulas[HORA DE FIM]),ListaDeAulas[EXCLUSIVO]),ListaDeAulas[EXCLUSIVO],0),2),0)","v":0},{"$f":"IFERROR(INDEX(ListaDeAulas[],MATCH(SUMPRODUCT((ListaDeAulas[DIA]=HorárioDeAulas[[#Headers],[SEXTA-FEIRA]])*(ROUNDDOWN($B9,10)>=ROUNDDOWN(ListaDeAulas[HORA DE INÍCIO],10))*($B9<=ListaDeAulas[HORA DE FIM]),ListaDeAulas[EXCLUSIVO]),ListaDeAulas[EXCLUSIVO],0),2),0)","v":"MAT"},{"$f":"IFERROR(INDEX(ListaDeAulas[],MATCH(SUMPRODUCT((ListaDeAulas[DIA]=HorárioDeAulas[[#Headers],[SÁBADO]])*(ROUNDDOWN($B9,10)>=ROUNDDOWN(ListaDeAulas[HORA DE INÍCIO],10))*($B9<=ListaDeAulas[HORA DE FIM]),ListaDeAulas[EXCLUSIVO]),ListaDeAulas[EXCLUSIVO],0),2),0)","v":0}]
[null,"09:30:00",{"$f":"IFERROR(INDEX(ListaDeAulas[],MATCH(SUMPRODUCT((ListaDeAulas[DIA]=HorárioDeAulas[[#Headers],[DOMINGO]])*(ROUNDDOWN($B10,10)>=ROUNDDOWN(ListaDeAulas[HORA DE INÍCIO],10))*($B10<=ListaDeAulas[HORA DE FIM]),ListaDeAulas[EXCLUSIVO]),ListaDeAulas[EXCLUSIVO],0),2),0)","v":0},{"$f":"IFERROR(INDEX(ListaDeAulas[],MATCH(SUMPRODUCT((ListaDeAulas[DIA]=HorárioDeAulas[[#Headers],[SEGUNDA-FEIRA]])*(ROUNDDOWN($B10,10)>=ROUNDDOWN(ListaDeAulas[HORA DE INÍCIO],10))*($B10<=ListaDeAulas[HORA DE FIM]),ListaDeAulas[EXCLUSIVO]),ListaDeAulas[EXCLUSIVO],0),2),0)","v":0},{"$f":"IFERROR(INDEX(ListaDeAulas[],MATCH(SUMPRODUCT((ListaDeAulas[DIA]=HorárioDeAulas[[#Headers],[TERÇA-FEIRA]])*(ROUNDDOWN($B10,10)>=ROUNDDOWN(ListaDeAulas[HORA DE INÍCIO],10))*($B10<=ListaDeAulas[HORA DE FIM]),ListaDeAulas[EXCLUSIVO]),ListaDeAulas[EXCLUSIVO],0),2),0)","v":0},{"$f":"IFERROR(INDEX(ListaDeAulas[],MATCH(SUMPRODUCT((ListaDeAulas[DIA]=HorárioDeAulas[[#Headers],[QUARTA-FEIRA]])*(ROUNDDOWN($B10,10)>=ROUNDDOWN(ListaDeAulas[HORA DE INÍCIO],10))*($B10<=ListaDeAulas[HORA DE FIM]),ListaDeAulas[EXCLUSIVO]),ListaDeAulas[EXCLUSIVO],0),2),0)","v":0},{"$f":"IFERROR(INDEX(ListaDeAulas[],MATCH(SUMPRODUCT((ListaDeAulas[DIA]=HorárioDeAulas[[#Headers],[QUINTA-FEIRA]])*(ROUNDDOWN($B10,10)>=ROUNDDOWN(ListaDeAulas[HORA DE INÍCIO],10))*($B10<=ListaDeAulas[HORA DE FIM]),ListaDeAulas[EXCLUSIVO]),ListaDeAulas[EXCLUSIVO],0),2),0)","v":0},{"$f":"IFERROR(INDEX(ListaDeAulas[],MATCH(SUMPRODUCT((ListaDeAulas[DIA]=HorárioDeAulas[[#Headers],[SEXTA-FEIRA]])*(ROUNDDOWN($B10,10)>=ROUNDDOWN(ListaDeAulas[HORA DE INÍCIO],10))*($B10<=ListaDeAulas[HORA DE FIM]),ListaDeAulas[EXCLUSIVO]),ListaDeAulas[EXCLUSIVO],0),2),0)","v":0},{"$f":"IFERROR(INDEX(ListaDeAulas[],MATCH(SUMPRODUCT((ListaDeAulas[DIA]=HorárioDeAulas[[#Headers],[SÁBADO]])*(ROUNDDOWN($B10,10)>=ROUNDDOWN(ListaDeAulas[HORA DE INÍCIO],10))*($B10<=ListaDeAulas[HORA DE FIM]),ListaDeAulas[EXCLUSIVO]),ListaDeAulas[EXCLUSIVO],0),2),0)","v":0}]
[null,"09:45:00",{"$f":"IFERROR(INDEX(ListaDeAulas[],MATCH(SUMPRODUCT((ListaDeAulas[DIA]=HorárioDeAulas[[#Headers],[DOMINGO]])*(ROUNDDOWN($B11,10)>=ROUNDDOWN(ListaDeAulas[HORA DE INÍCIO],10))*($B11<=ListaDeAulas[HORA DE FIM]),ListaDeAulas[EXCLUSIVO]),ListaDeAulas[EXCLUSIVO],0),2),0)","v":0},{"$f":"IFERROR(INDEX(ListaDeAulas[],MATCH(SUMPRODUCT((ListaDeAulas[DIA]=HorárioDeAulas[[#Headers],[SEGUNDA-FEIRA]])*(ROUNDDOWN($B11,10)>=ROUNDDOWN(ListaDeAulas[HORA DE INÍCIO],10))*($B11<=ListaDeAulas[HORA DE FIM]),ListaDeAulas[EXCLUSIVO]),ListaDeAulas[EXCLUSIVO],0),2),0)","v":0},{"$f":"IFERROR(INDEX(ListaDeAulas[],MATCH(SUMPRODUCT((ListaDeAulas[DIA]=HorárioDeAulas[[#Headers],[TERÇA-FEIRA]])*(ROUNDDOWN($B11,10)>=ROUNDDOWN(ListaDeAulas[HORA DE INÍCIO],10))*($B11<=ListaDeAulas[HORA DE FIM]),ListaDeAulas[EXCLUSIVO]),ListaDeAulas[EXCLUSIVO],0),2),0)","v":0},{"$f":"IFERROR(INDEX(ListaDeAulas[],MATCH(SUMPRODUCT((ListaDeAulas[DIA]=HorárioDeAulas[[#Headers],[QUARTA-FEIRA]])*(ROUNDDOWN($B11,10)>=ROUNDDOWN(ListaDeAulas[HORA DE INÍCIO],10))*($B11<=ListaDeAulas[HORA DE FIM]),ListaDeAulas[EXCLUSIVO]),ListaDeAulas[EXCLUSIVO],0),2),0)","v":0},{"$f":"IFERROR(INDEX(ListaDeAulas[],MATCH(SUMPRODUCT((ListaDeAulas[DIA]=HorárioDeAulas[[#Headers],[QUINTA-FEIRA]])*(ROUNDDOWN($B11,10)>=ROUNDDOWN(ListaDeAulas[HORA DE INÍCIO],10))*($B11<=ListaDeAulas[HORA DE FIM]),ListaDeAulas[EXCLUSIVO]),ListaDeAulas[EXCLUSIVO],0),2),0)","v":0},{"$f":"IFERROR(INDEX(ListaDeAulas[],MATCH(SUMPRODUCT((ListaDeAulas[DIA]=HorárioDeAulas[[#Headers],[SEXTA-FEIRA]])*(ROUNDDOWN($B11,10)>=ROUNDDOWN(ListaDeAulas[HORA DE INÍCIO],10))*($B11<=ListaDeAulas[HORA DE FIM]),ListaDeAulas[EXCLUSIVO]),ListaDeAulas[EXCLUSIVO],0),2),0)","v":0},{"$f":"IFERROR(INDEX(ListaDeAulas[],MATCH(SUMPRODUCT((ListaDeAulas[DIA]=HorárioDeAulas[[#Headers],[SÁBADO]])*(ROUNDDOWN($B11,10)>=ROUNDDOWN(ListaDeAulas[HORA DE INÍCIO],10))*($B11<=ListaDeAulas[HORA DE FIM]),ListaDeAulas[EXCLUSIVO]),ListaDeAulas[EXCLUSIVO],0),2),0)","v":0}]
[null,"10:00:00",{"$f":"IFERROR(INDEX(ListaDeAulas[],MATCH(SUMPRODUCT((ListaDeAulas[DIA]=HorárioDeAulas[[#Headers],[DOMINGO]])*(ROUNDDOWN($B12,10)>=ROUNDDOWN(ListaDeAulas[HORA DE INÍCIO],10))*($B12<=ListaDeAulas[HORA DE FIM]),ListaDeAulas[EXCLUSIVO]),ListaDeAulas[EXCLUSIVO],0),2),0)","v":0},{"$f":"IFERROR(INDEX(ListaDeAulas[],MATCH(SUMPRODUCT((ListaDeAulas[DIA]=HorárioDeAulas[[#Headers],[SEGUNDA-FEIRA]])*(ROUNDDOWN($B12,10)>=ROUNDDOWN(ListaDeAulas[HORA DE INÍCIO],10))*($B12<=ListaDeAulas[HORA DE FIM]),ListaDeAulas[EXCLUSIVO]),ListaDeAulas[EXCLUSIVO],0),2),0)","v":0},{"$f":"IFERROR(INDEX(ListaDeAulas[],MATCH(SUMPRODUCT((ListaDeAulas[DIA]=HorárioDeAulas[[#Headers],[TERÇA-FEIRA]])*(ROUNDDOWN($B12,10)>=ROUNDDOWN(ListaDeAulas[HORA DE INÍCIO],10))*($B12<=ListaDeAulas[HORA DE FIM]),ListaDeAulas[EXCLUSIVO]),ListaDeAulas[EXCLUSIVO],0),2),0)","v":0},{"$f":"IFERROR(INDEX(ListaDeAulas[],MATCH(SUMPRODUCT((ListaDeAulas[DIA]=HorárioDeAulas[[#Headers],[QUARTA-FEIRA]])*(ROUNDDOWN($B12,10)>=ROUNDDOWN(ListaDeAulas[HORA DE INÍCIO],10))*($B12<=ListaDeAulas[HORA DE FIM]),ListaDeAulas[EXCLUSIVO]),ListaDeAulas[EXCLUSIVO],0),2),0)","v":0},{"$f":"IFERROR(INDEX(ListaDeAulas[],MATCH(SUMPRODUCT((ListaDeAulas[DIA]=HorárioDeAulas[[#Headers],[QUINTA-FEIRA]])*(ROUNDDOWN($B12,10)>=ROUNDDOWN(ListaDeAulas[HORA DE INÍCIO],10))*($B12<=ListaDeAulas[HORA DE FIM]),ListaDeAulas[EXCLUSIVO]),ListaDeAulas[EXCLUSIVO],0),2),0)","v":0},{"$f":"IFERROR(INDEX(ListaDeAulas[],MATCH(SUMPRODUCT((ListaDeAulas[DIA]=HorárioDeAulas[[#Headers],[SEXTA-FEIRA]])*(ROUNDDOWN($B12,10)>=ROUNDDOWN(ListaDeAulas[HORA DE INÍCIO],10))*($B12<=ListaDeAulas[HORA DE FIM]),ListaDeAulas[EXCLUSIVO]),ListaDeAulas[EXCLUSIVO],0),2),0)","v":0},{"$f":"IFERROR(INDEX(ListaDeAulas[],MATCH(SUMPRODUCT((ListaDeAulas[DIA]=HorárioDeAulas[[#Headers],[SÁBADO]])*(ROUNDDOWN($B12,10)>=ROUNDDOWN(ListaDeAulas[HORA DE INÍCIO],10))*($B12<=ListaDeAulas[HORA DE FIM]),ListaDeAulas[EXCLUSIVO]),ListaDeAulas[EXCLUSIVO],0),2),0)","v":0}]
[null,"10:15:00",{"$f":"IFERROR(INDEX(ListaDeAulas[],MATCH(SUMPRODUCT((ListaDeAulas[DIA]=HorárioDeAulas[[#Headers],[DOMINGO]])*(ROUNDDOWN($B13,10)>=ROUNDDOWN(ListaDeAulas[HORA DE INÍCIO],10))*($B13<=ListaDeAulas[HORA DE FIM]),ListaDeAulas[EXCLUSIVO]),ListaDeAulas[EXCLUSIVO],0),2),0)","v":0},{"$f":"IFERROR(INDEX(ListaDeAulas[],MATCH(SUMPRODUCT((ListaDeAulas[DIA]=HorárioDeAulas[[#Headers],[SEGUNDA-FEIRA]])*(ROUNDDOWN($B13,10)>=ROUNDDOWN(ListaDeAulas[HORA DE INÍCIO],10))*($B13<=ListaDeAulas[HORA DE FIM]),ListaDeAulas[EXCLUSIVO]),ListaDeAulas[EXCLUSIVO],0),2),0)","v":0},{"$f":"IFERROR(INDEX(ListaDeAulas[],MATCH(SUMPRODUCT((ListaDeAulas[DIA]=HorárioDeAulas[[#Headers],[TERÇA-FEIRA]])*(ROUNDDOWN($B13,10)>=ROUNDDOWN(ListaDeAulas[HORA DE INÍCIO],10))*($B13<=ListaDeAulas[HORA DE FIM]),ListaDeAulas[EXCLUSIVO]),ListaDeAulas[EXCLUSIVO],0),2),0)","v":0},{"$f":"IFERROR(INDEX(ListaDeAulas[],MATCH(SUMPRODUCT((ListaDeAulas[DIA]=HorárioDeAulas[[#Headers],[QUARTA-FEIRA]])*(ROUNDDOWN($B13,10)>=ROUNDDOWN(ListaDeAulas[HORA DE INÍCIO],10))*($B13<=ListaDeAulas[HORA DE FIM]),ListaDeAulas[EXCLUSIVO]),ListaDeAulas[EXCLUSIVO],0),2),0)","v":0},{"$f":"IFERROR(INDEX(ListaDeAulas[],MATCH(SUMPRODUCT((ListaDeAulas[DIA]=HorárioDeAulas[[#Headers],[QUINTA-FEIRA]])*(ROUNDDOWN($B13,10)>=ROUNDDOWN(ListaDeAulas[HORA DE INÍCIO],10))*($B13<=ListaDeAulas[HORA DE FIM]),ListaDeAulas[EXCLUSIVO]),ListaDeAulas[EXCLUSIVO],0),2),0)","v":0},{"$f":"IFERROR(INDEX(ListaDeAulas[],MATCH(SUMPRODUCT((ListaDeAulas[DIA]=HorárioDeAulas[[#Headers],[SEXTA-FEIRA]])*(ROUNDDOWN($B13,10)>=ROUNDDOWN(ListaDeAulas[HORA DE INÍCIO],10))*($B13<=ListaDeAulas[HORA DE FIM]),ListaDeAulas[EXCLUSIVO]),ListaDeAulas[EXCLUSIVO],0),2),0)","v":0},{"$f":"IFERROR(INDEX(ListaDeAulas[],MATCH(SUMPRODUCT((ListaDeAulas[DIA]=HorárioDeAulas[[#Headers],[SÁBADO]])*(ROUNDDOWN($B13,10)>=ROUNDDOWN(ListaDeAulas[HORA DE INÍCIO],10))*($B13<=ListaDeAulas[HORA DE FIM]),ListaDeAulas[EXCLUSIVO]),ListaDeAulas[EXCLUSIVO],0),2),0)","v":0}]
[null,"10:30:00",{"$f":"IFERROR(INDEX(ListaDeAulas[],MATCH(SUMPRODUCT((ListaDeAulas[DIA]=HorárioDeAulas[[#Headers],[DOMINGO]])*(ROUNDDOWN($B14,10)>=ROUNDDOWN(ListaDeAulas[HORA DE INÍCIO],10))*($B14<=ListaDeAulas[HORA DE FIM]),ListaDeAulas[EXCLUSIVO]),ListaDeAulas[EXCLUSIVO],0),2),0)","v":0},{"$f":"IFERROR(INDEX(ListaDeAulas[],MATCH(SUMPRODUCT((ListaDeAulas[DIA]=HorárioDeAulas[[#Headers],[SEGUNDA-FEIRA]])*(ROUNDDOWN($B14,10)>=ROUNDDOWN(ListaDeAulas[HORA DE INÍCIO],10))*($B14<=ListaDeAulas[HORA DE FIM]),ListaDeAulas[EXCLUSIVO]),ListaDeAulas[EXCLUSIVO],0),2),0)","v":0},{"$f":"IFERROR(INDEX(ListaDeAulas[],MATCH(SUMPRODUCT((ListaDeAulas[DIA]=HorárioDeAulas[[#Headers],[TERÇA-FEIRA]])*(ROUNDDOWN($B14,10)>=ROUNDDOWN(ListaDeAulas[HORA DE INÍCIO],10))*($B14<=ListaDeAulas[HORA DE FIM]),ListaDeAulas[EXCLUSIVO]),ListaDeAulas[EXCLUSIVO],0),2),0)","v":0},{"$f":"IFERROR(INDEX(ListaDeAulas[],MATCH(SUMPRODUCT((ListaDeAulas[DIA]=HorárioDeAulas[[#Headers],[QUARTA-FEIRA]])*(ROUNDDOWN($B14,10)>=ROUNDDOWN(ListaDeAulas[HORA DE INÍCIO],10))*($B14<=ListaDeAulas[HORA DE FIM]),ListaDeAulas[EXCLUSIVO]),ListaDeAulas[EXCLUSIVO],0),2),0)","v":0},{"$f":"IFERROR(INDEX(ListaDeAulas[],MATCH(SUMPRODUCT((ListaDeAulas[DIA]=HorárioDeAulas[[#Headers],[QUINTA-FEIRA]])*(ROUNDDOWN($B14,10)>=ROUNDDOWN(ListaDeAulas[HORA DE INÍCIO],10))*($B14<=ListaDeAulas[HORA DE FIM]),ListaDeAulas[EXCLUSIVO]),ListaDeAulas[EXCLUSIVO],0),2),0)","v":0},{"$f":"IFERROR(INDEX(ListaDeAulas[],MATCH(SUMPRODUCT((ListaDeAulas[DIA]=HorárioDeAulas[[#Headers],[SEXTA-FEIRA]])*(ROUNDDOWN($B14,10)>=ROUNDDOWN(ListaDeAulas[HORA DE INÍCIO],10))*($B14<=ListaDeAulas[HORA DE FIM]),ListaDeAulas[EXCLUSIVO]),ListaDeAulas[EXCLUSIVO],0),2),0)","v":0},{"$f":"IFERROR(INDEX(ListaDeAulas[],MATCH(SUMPRODUCT((ListaDeAulas[DIA]=HorárioDeAulas[[#Headers],[SÁBADO]])*(ROUNDDOWN($B14,10)>=ROUNDDOWN(ListaDeAulas[HORA DE INÍCIO],10))*($B14<=ListaDeAulas[HORA DE FIM]),ListaDeAulas[EXCLUSIVO]),ListaDeAulas[EXCLUSIVO],0),2),0)","v":0}]
[null,"10:45:00",{"$f":"IFERROR(INDEX(ListaDeAulas[],MATCH(SUMPRODUCT((ListaDeAulas[DIA]=HorárioDeAulas[[#Headers],[DOMINGO]])*(ROUNDDOWN($B15,10)>=ROUNDDOWN(ListaDeAulas[HORA DE INÍCIO],10))*($B15<=ListaDeAulas[HORA DE FIM]),ListaDeAulas[EXCLUSIVO]),ListaDeAulas[EXCLUSIVO],0),2),0)","v":0},{"$f":"IFERROR(INDEX(ListaDeAulas[],MATCH(SUMPRODUCT((ListaDeAulas[DIA]=HorárioDeAulas[[#Headers],[SEGUNDA-FEIRA]])*(ROUNDDOWN($B15,10)>=ROUNDDOWN(ListaDeAulas[HORA DE INÍCIO],10))*($B15<=ListaDeAulas[HORA DE FIM]),ListaDeAulas[EXCLUSIVO]),ListaDeAulas[EXCLUSIVO],0),2),0)","v":0},{"$f":"IFERROR(INDEX(ListaDeAulas[],MATCH(SUMPRODUCT((ListaDeAulas[DIA]=HorárioDeAulas[[#Headers],[TERÇA-FEIRA]])*(ROUNDDOWN($B15,10)>=ROUNDDOWN(ListaDeAulas[HORA DE INÍCIO],10))*($B15<=ListaDeAulas[HORA DE FIM]),ListaDeAulas[EXCLUSIVO]),ListaDeAulas[EXCLUSIVO],0),2),0)","v":0},{"$f":"IFERROR(INDEX(ListaDeAulas[],MATCH(SUMPRODUCT((ListaDeAulas[DIA]=HorárioDeAulas[[#Headers],[QUARTA-FEIRA]])*(ROUNDDOWN($B15,10)>=ROUNDDOWN(ListaDeAulas[HORA DE INÍCIO],10))*($B15<=ListaDeAulas[HORA DE FIM]),ListaDeAulas[EXCLUSIVO]),ListaDeAulas[EXCLUSIVO],0),2),0)","v":0},{"$f":"IFERROR(INDEX(ListaDeAulas[],MATCH(SUMPRODUCT((ListaDeAulas[DIA]=HorárioDeAulas[[#Headers],[QUINTA-FEIRA]])*(ROUNDDOWN($B15,10)>=ROUNDDOWN(ListaDeAulas[HORA DE INÍCIO],10))*($B15<=ListaDeAulas[HORA DE FIM]),ListaDeAulas[EXCLUSIVO]),ListaDeAulas[EXCLUSIVO],0),2),0)","v":0},{"$f":"IFERROR(INDEX(ListaDeAulas[],MATCH(SUMPRODUCT((ListaDeAulas[DIA]=HorárioDeAulas[[#Headers],[SEXTA-FEIRA]])*(ROUNDDOWN($B15,10)>=ROUNDDOWN(ListaDeAulas[HORA DE INÍCIO],10))*($B15<=ListaDeAulas[HORA DE FIM]),ListaDeAulas[EXCLUSIVO]),ListaDeAulas[EXCLUSIVO],0),2),0)","v":0},{"$f":"IFERROR(INDEX(ListaDeAulas[],MATCH(SUMPRODUCT((ListaDeAulas[DIA]=HorárioDeAulas[[#Headers],[SÁBADO]])*(ROUNDDOWN($B15,10)>=ROUNDDOWN(ListaDeAulas[HORA DE INÍCIO],10))*($B15<=ListaDeAulas[HORA DE FIM]),ListaDeAulas[EXCLUSIVO]),ListaDeAulas[EXCLUSIVO],0),2),0)","v":0}]
[null,"11:00:00",{"$f":"IFERROR(INDEX(ListaDeAulas[],MATCH(SUMPRODUCT((ListaDeAulas[DIA]=HorárioDeAulas[[#Headers],[DOMINGO]])*(ROUNDDOWN($B16,10)>=ROUNDDOWN(ListaDeAulas[HORA DE INÍCIO],10))*($B16<=ListaDeAulas[HORA DE FIM]),ListaDeAulas[EXCLUSIVO]),ListaDeAulas[EXCLUSIVO],0),2),0)","v":0},{"$f":"IFERROR(INDEX(ListaDeAulas[],MATCH(SUMPRODUCT((ListaDeAulas[DIA]=HorárioDeAulas[[#Headers],[SEGUNDA-FEIRA]])*(ROUNDDOWN($B16,10)>=ROUNDDOWN(ListaDeAulas[HORA DE INÍCIO],10))*($B16<=ListaDeAulas[HORA DE FIM]),ListaDeAulas[EXCLUSIVO]),ListaDeAulas[EXCLUSIVO],0),2),0)","v":0},{"$f":"IFERROR(INDEX(ListaDeAulas[],MATCH(SUMPRODUCT((ListaDeAulas[DIA]=HorárioDeAulas[[#Headers],[TERÇA-FEIRA]])*(ROUNDDOWN($B16,10)>=ROUNDDOWN(ListaDeAulas[HORA DE INÍCIO],10))*($B16<=ListaDeAulas[HORA DE FIM]),ListaDeAulas[EXCLUSIVO]),ListaDeAulas[EXCLUSIVO],0),2),0)","v":"SBE"},{"$f":"IFERROR(INDEX(ListaDeAulas[],MATCH(SUMPRODUCT((ListaDeAulas[DIA]=HorárioDeAulas[[#Headers],[QUARTA-FEIRA]])*(ROUNDDOWN($B16,10)>=ROUNDDOWN(ListaDeAulas[HORA DE INÍCIO],10))*($B16<=ListaDeAulas[HORA DE FIM]),ListaDeAulas[EXCLUSIVO]),ListaDeAulas[EXCLUSIVO],0),2),0)","v":0},{"$f":"IFERROR(INDEX(ListaDeAulas[],MATCH(SUMPRODUCT((ListaDeAulas[DIA]=HorárioDeAulas[[#Headers],[QUINTA-FEIRA]])*(ROUNDDOWN($B16,10)>=ROUNDDOWN(ListaDeAulas[HORA DE INÍCIO],10))*($B16<=ListaDeAulas[HORA DE FIM]),ListaDeAulas[EXCLUSIVO]),ListaDeAulas[EXCLUSIVO],0),2),0)","v":"SBE"},{"$f":"IFERROR(INDEX(ListaDeAulas[],MATCH(SUMPRODUCT((ListaDeAulas[DIA]=HorárioDeAulas[[#Headers],[SEXTA-FEIRA]])*(ROUNDDOWN($B16,10)>=ROUNDDOWN(ListaDeAulas[HORA DE INÍCIO],10))*($B16<=ListaDeAulas[HORA DE FIM]),ListaDeAulas[EXCLUSIVO]),ListaDeAulas[EXCLUSIVO],0),2),0)","v":0},{"$f":"IFERROR(INDEX(ListaDeAulas[],MATCH(SUMPRODUCT((ListaDeAulas[DIA]=HorárioDeAulas[[#Headers],[SÁBADO]])*(ROUNDDOWN($B16,10)>=ROUNDDOWN(ListaDeAulas[HORA DE INÍCIO],10))*($B16<=ListaDeAulas[HORA DE FIM]),ListaDeAulas[EXCLUSIVO]),ListaDeAulas[EXCLUSIVO],0),2),0)","v":0}]
[null,"11:15:00",{"$f":"IFERROR(INDEX(ListaDeAulas[],MATCH(SUMPRODUCT((ListaDeAulas[DIA]=HorárioDeAulas[[#Headers],[DOMINGO]])*(ROUNDDOWN($B17,10)>=ROUNDDOWN(ListaDeAulas[HORA DE INÍCIO],10))*($B17<=ListaDeAulas[HORA DE FIM]),ListaDeAulas[EXCLUSIVO]),ListaDeAulas[EXCLUSIVO],0),2),0)","v":0},{"$f":"IFERROR(INDEX(ListaDeAulas[],MATCH(SUMPRODUCT((ListaDeAulas[DIA]=HorárioDeAulas[[#Headers],[SEGUNDA-FEIRA]])*(ROUNDDOWN($B17,10)>=ROUNDDOWN(ListaDeAulas[HORA DE INÍCIO],10))*($B17<=ListaDeAulas[HORA DE FIM]),ListaDeAulas[EXCLUSIVO]),ListaDeAulas[EXCLUSIVO],0),2),0)","v":0},{"$f":"IFERROR(INDEX(ListaDeAulas[],MATCH(SUMPRODUCT((ListaDeAulas[DIA]=HorárioDeAulas[[#Headers],[TERÇA-FEIRA]])*(ROUNDDOWN($B17,10)>=ROUNDDOWN(ListaDeAulas[HORA DE INÍCIO],10))*($B17<=ListaDeAulas[HORA DE FIM]),ListaDeAulas[EXCLUSIVO]),ListaDeAulas[EXCLUSIVO],0),2),0)","v":"SBE"},{"$f":"IFERROR(INDEX(ListaDeAulas[],MATCH(SUMPRODUCT((ListaDeAulas[DIA]=HorárioDeAulas[[#Headers],[QUARTA-FEIRA]])*(ROUNDDOWN($B17,10)>=ROUNDDOWN(ListaDeAulas[HORA DE INÍCIO],10))*($B17<=ListaDeAulas[HORA DE FIM]),ListaDeAulas[EXCLUSIVO]),ListaDeAulas[EXCLUSIVO],0),2),0)","v":0},{"$f":"IFERROR(INDEX(ListaDeAulas[],MATCH(SUMPRODUCT((ListaDeAulas[DIA]=HorárioDeAulas[[#Headers],[QUINTA-FEIRA]])*(ROUNDDOWN($B17,10)>=ROUNDDOWN(ListaDeAulas[HORA DE INÍCIO],10))*($B17<=ListaDeAulas[HORA DE FIM]),ListaDeAulas[EXCLUSIVO]),ListaDeAulas[EXCLUSIVO],0),2),0)","v":"SBE"},{"$f":"IFERROR(INDEX(ListaDeAulas[],MATCH(SUMPRODUCT((ListaDeAulas[DIA]=HorárioDeAulas[[#Headers],[SEXTA-FEIRA]])*(ROUNDDOWN($B17,10)>=ROUNDDOWN(ListaDeAulas[HORA DE INÍCIO],10))*($B17<=ListaDeAulas[HORA DE FIM]),ListaDeAulas[EXCLUSIVO]),ListaDeAulas[EXCLUSIVO],0),2),0)","v":0},{"$f":"IFERROR(INDEX(ListaDeAulas[],MATCH(SUMPRODUCT((ListaDeAulas[DIA]=HorárioDeAulas[[#Headers],[SÁBADO]])*(ROUNDDOWN($B17,10)>=ROUNDDOWN(ListaDeAulas[HORA DE INÍCIO],10))*($B17<=ListaDeAulas[HORA DE FIM]),ListaDeAulas[EXCLUSIVO]),ListaDeAulas[EXCLUSIVO],0),2),0)","v":0}]
[null,"11:30:00",{"$f":"IFERROR(INDEX(ListaDeAulas[],MATCH(SUMPRODUCT((ListaDeAulas[DIA]=HorárioDeAulas[[#Headers],[DOMINGO]])*(ROUNDDOWN($B18,10)>=ROUNDDOWN(ListaDeAulas[HORA DE INÍCIO],10))*($B18<=ListaDeAulas[HORA DE FIM]),ListaDeAulas[EXCLUSIVO]),ListaDeAulas[EXCLUSIVO],0),2),0)","v":0},{"$f":"IFERROR(INDEX(ListaDeAulas[],MATCH(SUMPRODUCT((ListaDeAulas[DIA]=HorárioDeAulas[[#Headers],[SEGUNDA-FEIRA]])*(ROUNDDOWN($B18,10)>=ROUNDDOWN(ListaDeAulas[HORA DE INÍCIO],10))*($B18<=ListaDeAulas[HORA DE FIM]),ListaDeAulas[EXCLUSIVO]),ListaDeAulas[EXCLUSIVO],0),2),0)","v":0},{"$f":"IFERROR(INDEX(ListaDeAulas[],MATCH(SUMPRODUCT((ListaDeAulas[DIA]=HorárioDeAulas[[#Headers],[TERÇA-FEIRA]])*(ROUNDDOWN($B18,10)>=ROUNDDOWN(ListaDeAulas[HORA DE INÍCIO],10))*($B18<=ListaDeAulas[HORA DE FIM]),ListaDeAulas[EXCLUSIVO]),ListaDeAulas[EXCLUSIVO],0),2),0)","v":"SBE"},{"$f":"IFERROR(INDEX(ListaDeAulas[],MATCH(SUMPRODUCT((ListaDeAulas[DIA]=HorárioDeAulas[[#Headers],[QUARTA-FEIRA]])*(ROUNDDOWN($B18,10)>=ROUNDDOWN(ListaDeAulas[HORA DE INÍCIO],10))*($B18<=ListaDeAulas[HORA DE FIM]),ListaDeAulas[EXCLUSIVO]),ListaDeAulas[EXCLUSIVO],0),2),0)","v":0},{"$f":"IFERROR(INDEX(ListaDeAulas[],MATCH(SUMPRODUCT((ListaDeAulas[DIA]=HorárioDeAulas[[#Headers],[QUINTA-FEIRA]])*(ROUNDDOWN($B18,10)>=ROUNDDOWN(ListaDeAulas[HORA DE INÍCIO],10))*($B18<=ListaDeAulas[HORA DE FIM]),ListaDeAulas[EXCLUSIVO]),ListaDeAulas[EXCLUSIVO],0),2),0)","v":"SBE"},{"$f":"IFERROR(INDEX(ListaDeAulas[],MATCH(SUMPRODUCT((ListaDeAulas[DIA]=HorárioDeAulas[[#Headers],[SEXTA-FEIRA]])*(ROUNDDOWN($B18,10)>=ROUNDDOWN(ListaDeAulas[HORA DE INÍCIO],10))*($B18<=ListaDeAulas[HORA DE FIM]),ListaDeAulas[EXCLUSIVO]),ListaDeAulas[EXCLUSIVO],0),2),0)","v":0},{"$f":"IFERROR(INDEX(ListaDeAulas[],MATCH(SUMPRODUCT((ListaDeAulas[DIA]=HorárioDeAulas[[#Headers],[SÁBADO]])*(ROUNDDOWN($B18,10)>=ROUNDDOWN(ListaDeAulas[HORA DE INÍCIO],10))*($B18<=ListaDeAulas[HORA DE FIM]),ListaDeAulas[EXCLUSIVO]),ListaDeAulas[EXCLUSIVO],0),2),0)","v":0}]
[null,"11:45:00",{"$f":"IFERROR(INDEX(ListaDeAulas[],MATCH(SUMPRODUCT((ListaDeAulas[DIA]=HorárioDeAulas[[#Headers],[DOMINGO]])*(ROUNDDOWN($B19,10)>=ROUNDDOWN(ListaDeAulas[HORA DE INÍCIO],10))*($B19<=ListaDeAulas[HORA DE FIM]),ListaDeAulas[EXCLUSIVO]),ListaDeAulas[EXCLUSIVO],0),2),0)","v":0},{"$f":"IFERROR(INDEX(ListaDeAulas[],MATCH(SUMPRODUCT((ListaDeAulas[DIA]=HorárioDeAulas[[#Headers],[SEGUNDA-FEIRA]])*(ROUNDDOWN($B19,10)>=ROUNDDOWN(ListaDeAulas[HORA DE INÍCIO],10))*($B19<=ListaDeAulas[HORA DE FIM]),ListaDeAulas[EXCLUSIVO]),ListaDeAulas[EXCLUSIVO],0),2),0)","v":0},{"$f":"IFERROR(INDEX(ListaDeAulas[],MATCH(SUMPRODUCT((ListaDeAulas[DIA]=HorárioDeAulas[[#Headers],[TERÇA-FEIRA]])*(ROUNDDOWN($B19,10)>=ROUNDDOWN(ListaDeAulas[HORA DE INÍCIO],10))*($B19<=ListaDeAulas[HORA DE FIM]),ListaDeAulas[EXCLUSIVO]),ListaDeAulas[EXCLUSIVO],0),2),0)","v":"SBE"},{"$f":"IFERROR(INDEX(ListaDeAulas[],MATCH(SUMPRODUCT((ListaDeAulas[DIA]=HorárioDeAulas[[#Headers],[QUARTA-FEIRA]])*(ROUNDDOWN($B19,10)>=ROUNDDOWN(ListaDeAulas[HORA DE INÍCIO],10))*($B19<=ListaDeAulas[HORA DE FIM]),ListaDeAulas[EXCLUSIVO]),ListaDeAulas[EXCLUSIVO],0),2),0)","v":0},{"$f":"IFERROR(INDEX(ListaDeAulas[],MATCH(SUMPRODUCT((ListaDeAulas[DIA]=HorárioDeAulas[[#Headers],[QUINTA-FEIRA]])*(ROUNDDOWN($B19,10)>=ROUNDDOWN(ListaDeAulas[HORA DE INÍCIO],10))*($B19<=ListaDeAulas[HORA DE FIM]),ListaDeAulas[EXCLUSIVO]),ListaDeAulas[EXCLUSIVO],0),2),0)","v":"SBE"},{"$f":"IFERROR(INDEX(ListaDeAulas[],MATCH(SUMPRODUCT((ListaDeAulas[DIA]=HorárioDeAulas[[#Headers],[SEXTA-FEIRA]])*(ROUNDDOWN($B19,10)>=ROUNDDOWN(ListaDeAulas[HORA DE INÍCIO],10))*($B19<=ListaDeAulas[HORA DE FIM]),ListaDeAulas[EXCLUSIVO]),ListaDeAulas[EXCLUSIVO],0),2),0)","v":0},{"$f":"IFERROR(INDEX(ListaDeAulas[],MATCH(SUMPRODUCT((ListaDeAulas[DIA]=HorárioDeAulas[[#Headers],[SÁBADO]])*(ROUNDDOWN($B19,10)>=ROUNDDOWN(ListaDeAulas[HORA DE INÍCIO],10))*($B19<=ListaDeAulas[HORA DE FIM]),ListaDeAulas[EXCLUSIVO]),ListaDeAulas[EXCLUSIVO],0),2),0)","v":0}]
[null,"12:00:00",{"$f":"IFERROR(INDEX(ListaDeAulas[],MATCH(SUMPRODUCT((ListaDeAulas[DIA]=HorárioDeAulas[[#Headers],[DOMINGO]])*(ROUNDDOWN($B20,10)>=ROUNDDOWN(ListaDeAulas[HORA DE INÍCIO],10))*($B20<=ListaDeAulas[HORA DE FIM]),ListaDeAulas[EXCLUSIVO]),ListaDeAulas[EXCLUSIVO],0),2),0)","v":0},{"$f":"IFERROR(INDEX(ListaDeAulas[],MATCH(SUMPRODUCT((ListaDeAulas[DIA]=HorárioDeAulas[[#Headers],[SEGUNDA-FEIRA]])*(ROUNDDOWN($B20,10)>=ROUNDDOWN(ListaDeAulas[HORA DE INÍCIO],10))*($B20<=ListaDeAulas[HORA DE FIM]),ListaDeAulas[EXCLUSIVO]),ListaDeAulas[EXCLUSIVO],0),2),0)","v":0},{"$f":"IFERROR(INDEX(ListaDeAulas[],MATCH(SUMPRODUCT((ListaDeAulas[DIA]=HorárioDeAulas[[#Headers],[TERÇA-FEIRA]])*(ROUNDDOWN($B20,10)>=ROUNDDOWN(ListaDeAulas[HORA DE INÍCIO],10))*($B20<=ListaDeAulas[HORA DE FIM]),ListaDeAulas[EXCLUSIVO]),ListaDeAulas[EXCLUSIVO],0),2),0)","v":"SBE"},{"$f":"IFERROR(INDEX(ListaDeAulas[],MATCH(SUMPRODUCT((ListaDeAulas[DIA]=HorárioDeAulas[[#Headers],[QUARTA-FEIRA]])*(ROUNDDOWN($B20,10)>=ROUNDDOWN(ListaDeAulas[HORA DE INÍCIO],10))*($B20<=ListaDeAulas[HORA DE FIM]),ListaDeAulas[EXCLUSIVO]),ListaDeAulas[EXCLUSIVO],0),2),0)","v":0},{"$f":"IFERROR(INDEX(ListaDeAulas[],MATCH(SUMPRODUCT((ListaDeAulas[DIA]=HorárioDeAulas[[#Headers],[QUINTA-FEIRA]])*(ROUNDDOWN($B20,10)>=ROUNDDOWN(ListaDeAulas[HORA DE INÍCIO],10))*($B20<=ListaDeAulas[HORA DE FIM]),ListaDeAulas[EXCLUSIVO]),ListaDeAulas[EXCLUSIVO],0),2),0)","v":"SBE"},{"$f":"IFERROR(INDEX(ListaDeAulas[],MATCH(SUMPRODUCT((ListaDeAulas[DIA]=HorárioDeAulas[[#Headers],[SEXTA-FEIRA]])*(ROUNDDOWN($B20,10)>=ROUNDDOWN(ListaDeAulas[HORA DE INÍCIO],10))*($B20<=ListaDeAulas[HORA DE FIM]),ListaDeAulas[EXCLUSIVO]),ListaDeAulas[EXCLUSIVO],0),2),0)","v":0},{"$f":"IFERROR(INDEX(ListaDeAulas[],MATCH(SUMPRODUCT((ListaDeAulas[DIA]=HorárioDeAulas[[#Headers],[SÁBADO]])*(ROUNDDOWN($B20,10)>=ROUNDDOWN(ListaDeAulas[HORA DE INÍCIO],10))*($B20<=ListaDeAulas[HORA DE FIM]),ListaDeAulas[EXCLUSIVO]),ListaDeAulas[EXCLUSIVO],0),2),0)","v":0}]
[null,"12:15:00",{"$f":"IFERROR(INDEX(ListaDeAulas[],MATCH(SUMPRODUCT((ListaDeAulas[DIA]=HorárioDeAulas[[#Headers],[DOMINGO]])*(ROUNDDOWN($B21,10)>=ROUNDDOWN(ListaDeAulas[HORA DE INÍCIO],10))*($B21<=ListaDeAulas[HORA DE FIM]),ListaDeAulas[EXCLUSIVO]),ListaDeAulas[EXCLUSIVO],0),2),0)","v":0},{"$f":"IFERROR(INDEX(ListaDeAulas[],MATCH(SUMPRODUCT((ListaDeAulas[DIA]=HorárioDeAulas[[#Headers],[SEGUNDA-FEIRA]])*(ROUNDDOWN($B21,10)>=ROUNDDOWN(ListaDeAulas[HORA DE INÍCIO],10))*($B21<=ListaDeAulas[HORA DE FIM]),ListaDeAulas[EXCLUSIVO]),ListaDeAulas[EXCLUSIVO],0),2),0)","v":0},{"$f":"IFERROR(INDEX(ListaDeAulas[],MATCH(SUMPRODUCT((ListaDeAulas[DIA]=HorárioDeAulas[[#Headers],[TERÇA-FEIRA]])*(ROUNDDOWN($B21,10)>=ROUNDDOWN(ListaDeAulas[HORA DE INÍCIO],10))*($B21<=ListaDeAulas[HORA DE FIM]),ListaDeAulas[EXCLUSIVO]),ListaDeAulas[EXCLUSIVO],0),2),0)","v":0},{"$f":"IFERROR(INDEX(ListaDeAulas[],MATCH(SUMPRODUCT((ListaDeAulas[DIA]=HorárioDeAulas[[#Headers],[QUARTA-FEIRA]])*(ROUNDDOWN($B21,10)>=ROUNDDOWN(ListaDeAulas[HORA DE INÍCIO],10))*($B21<=ListaDeAulas[HORA DE FIM]),ListaDeAulas[EXCLUSIVO]),ListaDeAulas[EXCLUSIVO],0),2),0)","v":0},{"$f":"IFERROR(INDEX(ListaDeAulas[],MATCH(SUMPRODUCT((ListaDeAulas[DIA]=HorárioDeAulas[[#Headers],[QUINTA-FEIRA]])*(ROUNDDOWN($B21,10)>=ROUNDDOWN(ListaDeAulas[HORA DE INÍCIO],10))*($B21<=ListaDeAulas[HORA DE FIM]),ListaDeAulas[EXCLUSIVO]),ListaDeAulas[EXCLUSIVO],0),2),0)","v":0},{"$f":"IFERROR(INDEX(ListaDeAulas[],MATCH(SUMPRODUCT((ListaDeAulas[DIA]=HorárioDeAulas[[#Headers],[SEXTA-FEIRA]])*(ROUNDDOWN($B21,10)>=ROUNDDOWN(ListaDeAulas[HORA DE INÍCIO],10))*($B21<=ListaDeAulas[HORA DE FIM]),ListaDeAulas[EXCLUSIVO]),ListaDeAulas[EXCLUSIVO],0),2),0)","v":0},{"$f":"IFERROR(INDEX(ListaDeAulas[],MATCH(SUMPRODUCT((ListaDeAulas[DIA]=HorárioDeAulas[[#Headers],[SÁBADO]])*(ROUNDDOWN($B21,10)>=ROUNDDOWN(ListaDeAulas[HORA DE INÍCIO],10))*($B21<=ListaDeAulas[HORA DE FIM]),ListaDeAulas[EXCLUSIVO]),ListaDeAulas[EXCLUSIVO],0),2),0)","v":0}]
[null,"12:30:00",{"$f":"IFERROR(INDEX(ListaDeAulas[],MATCH(SUMPRODUCT((ListaDeAulas[DIA]=HorárioDeAulas[[#Headers],[DOMINGO]])*(ROUNDDOWN($B22,10)>=ROUNDDOWN(ListaDeAulas[HORA DE INÍCIO],10))*($B22<=ListaDeAulas[HORA DE FIM]),ListaDeAulas[EXCLUSIVO]),ListaDeAulas[EXCLUSIVO],0),2),0)","v":0},{"$f":"IFERROR(INDEX(ListaDeAulas[],MATCH(SUMPRODUCT((ListaDeAulas[DIA]=HorárioDeAulas[[#Headers],[SEGUNDA-FEIRA]])*(ROUNDDOWN($B22,10)>=ROUNDDOWN(ListaDeAulas[HORA DE INÍCIO],10))*($B22<=ListaDeAulas[HORA DE FIM]),ListaDeAulas[EXCLUSIVO]),ListaDeAulas[EXCLUSIVO],0),2),0)","v":0},{"$f":"IFERROR(INDEX(ListaDeAulas[],MATCH(SUMPRODUCT((ListaDeAulas[DIA]=HorárioDeAulas[[#Headers],[TERÇA-FEIRA]])*(ROUNDDOWN($B22,10)>=ROUNDDOWN(ListaDeAulas[HORA DE INÍCIO],10))*($B22<=ListaDeAulas[HORA DE FIM]),ListaDeAulas[EXCLUSIVO]),ListaDeAulas[EXCLUSIVO],0),2),0)","v":0},{"$f":"IFERROR(INDEX(ListaDeAulas[],MATCH(SUMPRODUCT((ListaDeAulas[DIA]=HorárioDeAulas[[#Headers],[QUARTA-FEIRA]])*(ROUNDDOWN($B22,10)>=ROUNDDOWN(ListaDeAulas[HORA DE INÍCIO],10))*($B22<=ListaDeAulas[HORA DE FIM]),ListaDeAulas[EXCLUSIVO]),ListaDeAulas[EXCLUSIVO],0),2),0)","v":0},{"$f":"IFERROR(INDEX(ListaDeAulas[],MATCH(SUMPRODUCT((ListaDeAulas[DIA]=HorárioDeAulas[[#Headers],[QUINTA-FEIRA]])*(ROUNDDOWN($B22,10)>=ROUNDDOWN(ListaDeAulas[HORA DE INÍCIO],10))*($B22<=ListaDeAulas[HORA DE FIM]),ListaDeAulas[EXCLUSIVO]),ListaDeAulas[EXCLUSIVO],0),2),0)","v":0},{"$f":"IFERROR(INDEX(ListaDeAulas[],MATCH(SUMPRODUCT((ListaDeAulas[DIA]=HorárioDeAulas[[#Headers],[SEXTA-FEIRA]])*(ROUNDDOWN($B22,10)>=ROUNDDOWN(ListaDeAulas[HORA DE INÍCIO],10))*($B22<=ListaDeAulas[HORA DE FIM]),ListaDeAulas[EXCLUSIVO]),ListaDeAulas[EXCLUSIVO],0),2),0)","v":0},{"$f":"IFERROR(INDEX(ListaDeAulas[],MATCH(SUMPRODUCT((ListaDeAulas[DIA]=HorárioDeAulas[[#Headers],[SÁBADO]])*(ROUNDDOWN($B22,10)>=ROUNDDOWN(ListaDeAulas[HORA DE INÍCIO],10))*($B22<=ListaDeAulas[HORA DE FIM]),ListaDeAulas[EXCLUSIVO]),ListaDeAulas[EXCLUSIVO],0),2),0)","v":0}]
[null,"12:45:00",{"$f":"IFERROR(INDEX(ListaDeAulas[],MATCH(SUMPRODUCT((ListaDeAulas[DIA]=HorárioDeAulas[[#Headers],[DOMINGO]])*(ROUNDDOWN($B23,10)>=ROUNDDOWN(ListaDeAulas[HORA DE INÍCIO],10))*($B23<=ListaDeAulas[HORA DE FIM]),ListaDeAulas[EXCLUSIVO]),ListaDeAulas[EXCLUSIVO],0),2),0)","v":0},{"$f":"IFERROR(INDEX(ListaDeAulas[],MATCH(SUMPRODUCT((ListaDeAulas[DIA]=HorárioDeAulas[[#Headers],[SEGUNDA-FEIRA]])*(ROUNDDOWN($B23,10)>=ROUNDDOWN(ListaDeAulas[HORA DE INÍCIO],10))*($B23<=ListaDeAulas[HORA DE FIM]),ListaDeAulas[EXCLUSIVO]),ListaDeAulas[EXCLUSIVO],0),2),0)","v":0},{"$f":"IFERROR(INDEX(ListaDeAulas[],MATCH(SUMPRODUCT((ListaDeAulas[DIA]=HorárioDeAulas[[#Headers],[TERÇA-FEIRA]])*(ROUNDDOWN($B23,10)>=ROUNDDOWN(ListaDeAulas[HORA DE INÍCIO],10))*($B23<=ListaDeAulas[HORA DE FIM]),ListaDeAulas[EXCLUSIVO]),ListaDeAulas[EXCLUSIVO],0),2),0)","v":0},{"$f":"IFERROR(INDEX(ListaDeAulas[],MATCH(SUMPRODUCT((ListaDeAulas[DIA]=HorárioDeAulas[[#Headers],[QUARTA-FEIRA]])*(ROUNDDOWN($B23,10)>=ROUNDDOWN(ListaDeAulas[HORA DE INÍCIO],10))*($B23<=ListaDeAulas[HORA DE FIM]),ListaDeAulas[EXCLUSIVO]),ListaDeAulas[EXCLUSIVO],0),2),0)","v":0},{"$f":"IFERROR(INDEX(ListaDeAulas[],MATCH(SUMPRODUCT((ListaDeAulas[DIA]=HorárioDeAulas[[#Headers],[QUINTA-FEIRA]])*(ROUNDDOWN($B23,10)>=ROUNDDOWN(ListaDeAulas[HORA DE INÍCIO],10))*($B23<=ListaDeAulas[HORA DE FIM]),ListaDeAulas[EXCLUSIVO]),ListaDeAulas[EXCLUSIVO],0),2),0)","v":0},{"$f":"IFERROR(INDEX(ListaDeAulas[],MATCH(SUMPRODUCT((ListaDeAulas[DIA]=HorárioDeAulas[[#Headers],[SEXTA-FEIRA]])*(ROUNDDOWN($B23,10)>=ROUNDDOWN(ListaDeAulas[HORA DE INÍCIO],10))*($B23<=ListaDeAulas[HORA DE FIM]),ListaDeAulas[EXCLUSIVO]),ListaDeAulas[EXCLUSIVO],0),2),0)","v":0},{"$f":"IFERROR(INDEX(ListaDeAulas[],MATCH(SUMPRODUCT((ListaDeAulas[DIA]=HorárioDeAulas[[#Headers],[SÁBADO]])*(ROUNDDOWN($B23,10)>=ROUNDDOWN(ListaDeAulas[HORA DE INÍCIO],10))*($B23<=ListaDeAulas[HORA DE FIM]),ListaDeAulas[EXCLUSIVO]),ListaDeAulas[EXCLUSIVO],0),2),0)","v":0}]
[null,"13:00:00",{"$f":"IFERROR(INDEX(ListaDeAulas[],MATCH(SUMPRODUCT((ListaDeAulas[DIA]=HorárioDeAulas[[#Headers],[DOMINGO]])*(ROUNDDOWN($B24,10)>=ROUNDDOWN(ListaDeAulas[HORA DE INÍCIO],10))*($B24<=ListaDeAulas[HORA DE FIM]),ListaDeAulas[EXCLUSIVO]),ListaDeAulas[EXCLUSIVO],0),2),0)","v":0},{"$f":"IFERROR(INDEX(ListaDeAulas[],MATCH(SUMPRODUCT((ListaDeAulas[DIA]=HorárioDeAulas[[#Headers],[SEGUNDA-FEIRA]])*(ROUNDDOWN($B24,10)>=ROUNDDOWN(ListaDeAulas[HORA DE INÍCIO],10))*($B24<=ListaDeAulas[HORA DE FIM]),ListaDeAulas[EXCLUSIVO]),ListaDeAulas[EXCLUSIVO],0),2),0)","v":"ETEC"},{"$f":"IFERROR(INDEX(ListaDeAulas[],MATCH(SUMPRODUCT((ListaDeAulas[DIA]=HorárioDeAulas[[#Headers],[TERÇA-FEIRA]])*(ROUNDDOWN($B24,10)>=ROUNDDOWN(ListaDeAulas[HORA DE INÍCIO],10))*($B24<=ListaDeAulas[HORA DE FIM]),ListaDeAulas[EXCLUSIVO]),ListaDeAulas[EXCLUSIVO],0),2),0)","v":0},{"$f":"IFERROR(INDEX(ListaDeAulas[],MATCH(SUMPRODUCT((ListaDeAulas[DIA]=HorárioDeAulas[[#Headers],[QUARTA-FEIRA]])*(ROUNDDOWN($B24,10)>=ROUNDDOWN(ListaDeAulas[HORA DE INÍCIO],10))*($B24<=ListaDeAulas[HORA DE FIM]),ListaDeAulas[EXCLUSIVO]),ListaDeAulas[EXCLUSIVO],0),2),0)","v":"ETEC"},{"$f":"IFERROR(INDEX(ListaDeAulas[],MATCH(SUMPRODUCT((ListaDeAulas[DIA]=HorárioDeAulas[[#Headers],[QUINTA-FEIRA]])*(ROUNDDOWN($B24,10)>=ROUNDDOWN(ListaDeAulas[HORA DE INÍCIO],10))*($B24<=ListaDeAulas[HORA DE FIM]),ListaDeAulas[EXCLUSIVO]),ListaDeAulas[EXCLUSIVO],0),2),0)","v":0},{"$f":"IFERROR(INDEX(ListaDeAulas[],MATCH(SUMPRODUCT((ListaDeAulas[DIA]=HorárioDeAulas[[#Headers],[SEXTA-FEIRA]])*(ROUNDDOWN($B24,10)>=ROUNDDOWN(ListaDeAulas[HORA DE INÍCIO],10))*($B24<=ListaDeAulas[HORA DE FIM]),ListaDeAulas[EXCLUSIVO]),ListaDeAulas[EXCLUSIVO],0),2),0)","v":0},{"$f":"IFERROR(INDEX(ListaDeAulas[],MATCH(SUMPRODUCT((ListaDeAulas[DIA]=HorárioDeAulas[[#Headers],[SÁBADO]])*(ROUNDDOWN($B24,10)>=ROUNDDOWN(ListaDeAulas[HORA DE INÍCIO],10))*($B24<=ListaDeAulas[HORA DE FIM]),ListaDeAulas[EXCLUSIVO]),ListaDeAulas[EXCLUSIVO],0),2),0)","v":0}]
[null,"13:15:00",{"$f":"IFERROR(INDEX(ListaDeAulas[],MATCH(SUMPRODUCT((ListaDeAulas[DIA]=HorárioDeAulas[[#Headers],[DOMINGO]])*(ROUNDDOWN($B25,10)>=ROUNDDOWN(ListaDeAulas[HORA DE INÍCIO],10))*($B25<=ListaDeAulas[HORA DE FIM]),ListaDeAulas[EXCLUSIVO]),ListaDeAulas[EXCLUSIVO],0),2),0)","v":0},{"$f":"IFERROR(INDEX(ListaDeAulas[],MATCH(SUMPRODUCT((ListaDeAulas[DIA]=HorárioDeAulas[[#Headers],[SEGUNDA-FEIRA]])*(ROUNDDOWN($B25,10)>=ROUNDDOWN(ListaDeAulas[HORA DE INÍCIO],10))*($B25<=ListaDeAulas[HORA DE FIM]),ListaDeAulas[EXCLUSIVO]),ListaDeAulas[EXCLUSIVO],0),2),0)","v":"ETEC"},{"$f":"IFERROR(INDEX(ListaDeAulas[],MATCH(SUMPRODUCT((ListaDeAulas[DIA]=HorárioDeAulas[[#Headers],[TERÇA-FEIRA]])*(ROUNDDOWN($B25,10)>=ROUNDDOWN(ListaDeAulas[HORA DE INÍCIO],10))*($B25<=ListaDeAulas[HORA DE FIM]),ListaDeAulas[EXCLUSIVO]),ListaDeAulas[EXCLUSIVO],0),2),0)","v":0},{"$f":"IFERROR(INDEX(ListaDeAulas[],MATCH(SUMPRODUCT((ListaDeAulas[DIA]=HorárioDeAulas[[#Headers],[QUARTA-FEIRA]])*(ROUNDDOWN($B25,10)>=ROUNDDOWN(ListaDeAulas[HORA DE INÍCIO],10))*($B25<=ListaDeAulas[HORA DE FIM]),ListaDeAulas[EXCLUSIVO]),ListaDeAulas[EXCLUSIVO],0),2),0)","v":"ETEC"},{"$f":"IFERROR(INDEX(ListaDeAulas[],MATCH(SUMPRODUCT((ListaDeAulas[DIA]=HorárioDeAulas[[#Headers],[QUINTA-FEIRA]])*(ROUNDDOWN($B25,10)>=ROUNDDOWN(ListaDeAulas[HORA DE INÍCIO],10))*($B25<=ListaDeAulas[HORA DE FIM]),ListaDeAulas[EXCLUSIVO]),ListaDeAulas[EXCLUSIVO],0),2),0)","v":0},{"$f":"IFERROR(INDEX(ListaDeAulas[],MATCH(SUMPRODUCT((ListaDeAulas[DIA]=HorárioDeAulas[[#Headers],[SEXTA-FEIRA]])*(ROUNDDOWN($B25,10)>=ROUNDDOWN(ListaDeAulas[HORA DE INÍCIO],10))*($B25<=ListaDeAulas[HORA DE FIM]),ListaDeAulas[EXCLUSIVO]),ListaDeAulas[EXCLUSIVO],0),2),0)","v":0},{"$f":"IFERROR(INDEX(ListaDeAulas[],MATCH(SUMPRODUCT((ListaDeAulas[DIA]=HorárioDeAulas[[#Headers],[SÁBADO]])*(ROUNDDOWN($B25,10)>=ROUNDDOWN(ListaDeAulas[HORA DE INÍCIO],10))*($B25<=ListaDeAulas[HORA DE FIM]),ListaDeAulas[EXCLUSIVO]),ListaDeAulas[EXCLUSIVO],0),2),0)","v":0}]
[null,"13:30:00",{"$f":"IFERROR(INDEX(ListaDeAulas[],MATCH(SUMPRODUCT((ListaDeAulas[DIA]=HorárioDeAulas[[#Headers],[DOMINGO]])*(ROUNDDOWN($B26,10)>=ROUNDDOWN(ListaDeAulas[HORA DE INÍCIO],10))*($B26<=ListaDeAulas[HORA DE FIM]),ListaDeAulas[EXCLUSIVO]),ListaDeAulas[EXCLUSIVO],0),2),0)","v":0},{"$f":"IFERROR(INDEX(ListaDeAulas[],MATCH(SUMPRODUCT((ListaDeAulas[DIA]=HorárioDeAulas[[#Headers],[SEGUNDA-FEIRA]])*(ROUNDDOWN($B26,10)>=ROUNDDOWN(ListaDeAulas[HORA DE INÍCIO],10))*($B26<=ListaDeAulas[HORA DE FIM]),ListaDeAulas[EXCLUSIVO]),ListaDeAulas[EXCLUSIVO],0),2),0)","v":"ETEC"},{"$f":"IFERROR(INDEX(ListaDeAulas[],MATCH(SUMPRODUCT((ListaDeAulas[DIA]=HorárioDeAulas[[#Headers],[TERÇA-FEIRA]])*(ROUNDDOWN($B26,10)>=ROUNDDOWN(ListaDeAulas[HORA DE INÍCIO],10))*($B26<=ListaDeAulas[HORA DE FIM]),ListaDeAulas[EXCLUSIVO]),ListaDeAulas[EXCLUSIVO],0),2),0)","v":0},{"$f":"IFERROR(INDEX(ListaDeAulas[],MATCH(SUMPRODUCT((ListaDeAulas[DIA]=HorárioDeAulas[[#Headers],[QUARTA-FEIRA]])*(ROUNDDOWN($B26,10)>=ROUNDDOWN(ListaDeAulas[HORA DE INÍCIO],10))*($B26<=ListaDeAulas[HORA DE FIM]),ListaDeAulas[EXCLUSIVO]),ListaDeAulas[EXCLUSIVO],0),2),0)","v":"ETEC"},{"$f":"IFERROR(INDEX(ListaDeAulas[],MATCH(SUMPRODUCT((ListaDeAulas[DIA]=HorárioDeAulas[[#Headers],[QUINTA-FEIRA]])*(ROUNDDOWN($B26,10)>=ROUNDDOWN(ListaDeAulas[HORA DE INÍCIO],10))*($B26<=ListaDeAulas[HORA DE FIM]),ListaDeAulas[EXCLUSIVO]),ListaDeAulas[EXCLUSIVO],0),2),0)","v":0},{"$f":"IFERROR(INDEX(ListaDeAulas[],MATCH(SUMPRODUCT((ListaDeAulas[DIA]=HorárioDeAulas[[#Headers],[SEXTA-FEIRA]])*(ROUNDDOWN($B26,10)>=ROUNDDOWN(ListaDeAulas[HORA DE INÍCIO],10))*($B26<=ListaDeAulas[HORA DE FIM]),ListaDeAulas[EXCLUSIVO]),ListaDeAulas[EXCLUSIVO],0),2),0)","v":0},{"$f":"IFERROR(INDEX(ListaDeAulas[],MATCH(SUMPRODUCT((ListaDeAulas[DIA]=HorárioDeAulas[[#Headers],[SÁBADO]])*(ROUNDDOWN($B26,10)>=ROUNDDOWN(ListaDeAulas[HORA DE INÍCIO],10))*($B26<=ListaDeAulas[HORA DE FIM]),ListaDeAulas[EXCLUSIVO]),ListaDeAulas[EXCLUSIVO],0),2),0)","v":0}]
[null,"13:45:00",{"$f":"IFERROR(INDEX(ListaDeAulas[],MATCH(SUMPRODUCT((ListaDeAulas[DIA]=HorárioDeAulas[[#Headers],[DOMINGO]])*(ROUNDDOWN($B27,10)>=ROUNDDOWN(ListaDeAulas[HORA DE INÍCIO],10))*($B27<=ListaDeAulas[HORA DE FIM]),ListaDeAulas[EXCLUSIVO]),ListaDeAulas[EXCLUSIVO],0),2),0)","v":0},{"$f":"IFERROR(INDEX(ListaDeAulas[],MATCH(SUMPRODUCT((ListaDeAulas[DIA]=HorárioDeAulas[[#Headers],[SEGUNDA-FEIRA]])*(ROUNDDOWN($B27,10)>=ROUNDDOWN(ListaDeAulas[HORA DE INÍCIO],10))*($B27<=ListaDeAulas[HORA DE FIM]),ListaDeAulas[EXCLUSIVO]),ListaDeAulas[EXCLUSIVO],0),2),0)","v":"ETEC"},{"$f":"IFERROR(INDEX(ListaDeAulas[],MATCH(SUMPRODUCT((ListaDeAulas[DIA]=HorárioDeAulas[[#Headers],[TERÇA-FEIRA]])*(ROUNDDOWN($B27,10)>=ROUNDDOWN(ListaDeAulas[HORA DE INÍCIO],10))*($B27<=ListaDeAulas[HORA DE FIM]),ListaDeAulas[EXCLUSIVO]),ListaDeAulas[EXCLUSIVO],0),2),0)","v":0},{"$f":"IFERROR(INDEX(ListaDeAulas[],MATCH(SUMPRODUCT((ListaDeAulas[DIA]=HorárioDeAulas[[#Headers],[QUARTA-FEIRA]])*(ROUNDDOWN($B27,10)>=ROUNDDOWN(ListaDeAulas[HORA DE INÍCIO],10))*($B27<=ListaDeAulas[HORA DE FIM]),ListaDeAulas[EXCLUSIVO]),ListaDeAulas[EXCLUSIVO],0),2),0)","v":"ETEC"},{"$f":"IFERROR(INDEX(ListaDeAulas[],MATCH(SUMPRODUCT((ListaDeAulas[DIA]=HorárioDeAulas[[#Headers],[QUINTA-FEIRA]])*(ROUNDDOWN($B27,10)>=ROUNDDOWN(ListaDeAulas[HORA DE INÍCIO],10))*($B27<=ListaDeAulas[HORA DE FIM]),ListaDeAulas[EXCLUSIVO]),ListaDeAulas[EXCLUSIVO],0),2),0)","v":0},{"$f":"IFERROR(INDEX(ListaDeAulas[],MATCH(SUMPRODUCT((ListaDeAulas[DIA]=HorárioDeAulas[[#Headers],[SEXTA-FEIRA]])*(ROUNDDOWN($B27,10)>=ROUNDDOWN(ListaDeAulas[HORA DE INÍCIO],10))*($B27<=ListaDeAulas[HORA DE FIM]),ListaDeAulas[EXCLUSIVO]),ListaDeAulas[EXCLUSIVO],0),2),0)","v":0},{"$f":"IFERROR(INDEX(ListaDeAulas[],MATCH(SUMPRODUCT((ListaDeAulas[DIA]=HorárioDeAulas[[#Headers],[SÁBADO]])*(ROUNDDOWN($B27,10)>=ROUNDDOWN(ListaDeAulas[HORA DE INÍCIO],10))*($B27<=ListaDeAulas[HORA DE FIM]),ListaDeAulas[EXCLUSIVO]),ListaDeAulas[EXCLUSIVO],0),2),0)","v":0}]
[null,"14:00:00",{"$f":"IFERROR(INDEX(ListaDeAulas[],MATCH(SUMPRODUCT((ListaDeAulas[DIA]=HorárioDeAulas[[#Headers],[DOMINGO]])*(ROUNDDOWN($B28,10)>=ROUNDDOWN(ListaDeAulas[HORA DE INÍCIO],10))*($B28<=ListaDeAulas[HORA DE FIM]),ListaDeAulas[EXCLUSIVO]),ListaDeAulas[EXCLUSIVO],0),2),0)","v":0},{"$f":"IFERROR(INDEX(ListaDeAulas[],MATCH(SUMPRODUCT((ListaDeAulas[DIA]=HorárioDeAulas[[#Headers],[SEGUNDA-FEIRA]])*(ROUNDDOWN($B28,10)>=ROUNDDOWN(ListaDeAulas[HORA DE INÍCIO],10))*($B28<=ListaDeAulas[HORA DE FIM]),ListaDeAulas[EXCLUSIVO]),ListaDeAulas[EXCLUSIVO],0),2),0)","v":"ETEC"},{"$f":"IFERROR(INDEX(ListaDeAulas[],MATCH(SUMPRODUCT((ListaDeAulas[DIA]=HorárioDeAulas[[#Headers],[TERÇA-FEIRA]])*(ROUNDDOWN($B28,10)>=ROUNDDOWN(ListaDeAulas[HORA DE INÍCIO],10))*($B28<=ListaDeAulas[HORA DE FIM]),ListaDeAulas[EXCLUSIVO]),ListaDeAulas[EXCLUSIVO],0),2),0)","v":0},{"$f":"IFERROR(INDEX(ListaDeAulas[],MATCH(SUMPRODUCT((ListaDeAulas[DIA]=HorárioDeAulas[[#Headers],[QUARTA-FEIRA]])*(ROUNDDOWN($B28,10)>=ROUNDDOWN(ListaDeAulas[HORA DE INÍCIO],10))*($B28<=ListaDeAulas[HORA DE FIM]),ListaDeAulas[EXCLUSIVO]),ListaDeAulas[EXCLUSIVO],0),2),0)","v":"ETEC"},{"$f":"IFERROR(INDEX(ListaDeAulas[],MATCH(SUMPRODUCT((ListaDeAulas[DIA]=HorárioDeAulas[[#Headers],[QUINTA-FEIRA]])*(ROUNDDOWN($B28,10)>=ROUNDDOWN(ListaDeAulas[HORA DE INÍCIO],10))*($B28<=ListaDeAulas[HORA DE FIM]),ListaDeAulas[EXCLUSIVO]),ListaDeAulas[EXCLUSIVO],0),2),0)","v":0},{"$f":"IFERROR(INDEX(ListaDeAulas[],MATCH(SUMPRODUCT((ListaDeAulas[DIA]=HorárioDeAulas[[#Headers],[SEXTA-FEIRA]])*(ROUNDDOWN($B28,10)>=ROUNDDOWN(ListaDeAulas[HORA DE INÍCIO],10))*($B28<=ListaDeAulas[HORA DE FIM]),ListaDeAulas[EXCLUSIVO]),ListaDeAulas[EXCLUSIVO],0),2),0)","v":0},{"$f":"IFERROR(INDEX(ListaDeAulas[],MATCH(SUMPRODUCT((ListaDeAulas[DIA]=HorárioDeAulas[[#Headers],[SÁBADO]])*(ROUNDDOWN($B28,10)>=ROUNDDOWN(ListaDeAulas[HORA DE INÍCIO],10))*($B28<=ListaDeAulas[HORA DE FIM]),ListaDeAulas[EXCLUSIVO]),ListaDeAulas[EXCLUSIVO],0),2),0)","v":0}]
[null,"14:15:00",{"$f":"IFERROR(INDEX(ListaDeAulas[],MATCH(SUMPRODUCT((ListaDeAulas[DIA]=HorárioDeAulas[[#Headers],[DOMINGO]])*(ROUNDDOWN($B29,10)>=ROUNDDOWN(ListaDeAulas[HORA DE INÍCIO],10))*($B29<=ListaDeAulas[HORA DE FIM]),ListaDeAulas[EXCLUSIVO]),ListaDeAulas[EXCLUSIVO],0),2),0)","v":0},{"$f":"IFERROR(INDEX(ListaDeAulas[],MATCH(SUMPRODUCT((ListaDeAulas[DIA]=HorárioDeAulas[[#Headers],[SEGUNDA-FEIRA]])*(ROUNDDOWN($B29,10)>=ROUNDDOWN(ListaDeAulas[HORA DE INÍCIO],10))*($B29<=ListaDeAulas[HORA DE FIM]),ListaDeAulas[EXCLUSIVO]),ListaDeAulas[EXCLUSIVO],0),2),0)","v":0},{"$f":"IFERROR(INDEX(ListaDeAulas[],MATCH(SUMPRODUCT((ListaDeAulas[DIA]=HorárioDeAulas[[#Headers],[TERÇA-FEIRA]])*(ROUNDDOWN($B29,10)>=ROUNDDOWN(ListaDeAulas[HORA DE INÍCIO],10))*($B29<=ListaDeAulas[HORA DE FIM]),ListaDeAulas[EXCLUSIVO]),ListaDeAulas[EXCLUSIVO],0),2),0)","v":0},{"$f":"IFERROR(INDEX(ListaDeAulas[],MATCH(SUMPRODUCT((ListaDeAulas[DIA]=HorárioDeAulas[[#Headers],[QUARTA-FEIRA]])*(ROUNDDOWN($B29,10)>=ROUNDDOWN(ListaDeAulas[HORA DE INÍCIO],10))*($B29<=ListaDeAulas[HORA DE FIM]),ListaDeAulas[EXCLUSIVO]),ListaDeAulas[EXCLUSIVO],0),2),0)","v":0},{"$f":"IFERROR(INDEX(ListaDeAulas[],MATCH(SUMPRODUCT((ListaDeAulas[DIA]=HorárioDeAulas[[#Headers],[QUINTA-FEIRA]])*(ROUNDDOWN($B29,10)>=ROUNDDOWN(ListaDeAulas[HORA DE INÍCIO],10))*($B29<=ListaDeAulas[HORA DE FIM]),ListaDeAulas[EXCLUSIVO]),ListaDeAulas[EXCLUSIVO],0),2),0)","v":0},{"$f":"IFERROR(INDEX(ListaDeAulas[],MATCH(SUMPRODUCT((ListaDeAulas[DIA]=HorárioDeAulas[[#Headers],[SEXTA-FEIRA]])*(ROUNDDOWN($B29,10)>=ROUNDDOWN(ListaDeAulas[HORA DE INÍCIO],10))*($B29<=ListaDeAulas[HORA DE FIM]),ListaDeAulas[EXCLUSIVO]),ListaDeAulas[EXCLUSIVO],0),2),0)","v":0},{"$f":"IFERROR(INDEX(ListaDeAulas[],MATCH(SUMPRODUCT((ListaDeAulas[DIA]=HorárioDeAulas[[#Headers],[SÁBADO]])*(ROUNDDOWN($B29,10)>=ROUNDDOWN(ListaDeAulas[HORA DE INÍCIO],10))*($B29<=ListaDeAulas[HORA DE FIM]),ListaDeAulas[EXCLUSIVO]),ListaDeAulas[EXCLUSIVO],0),2),0)","v":0}]
[null,"14:30:00",{"$f":"IFERROR(INDEX(ListaDeAulas[],MATCH(SUMPRODUCT((ListaDeAulas[DIA]=HorárioDeAulas[[#Headers],[DOMINGO]])*(ROUNDDOWN($B30,10)>=ROUNDDOWN(ListaDeAulas[HORA DE INÍCIO],10))*($B30<=ListaDeAulas[HORA DE FIM]),ListaDeAulas[EXCLUSIVO]),ListaDeAulas[EXCLUSIVO],0),2),0)","v":0},{"$f":"IFERROR(INDEX(ListaDeAulas[],MATCH(SUMPRODUCT((ListaDeAulas[DIA]=HorárioDeAulas[[#Headers],[SEGUNDA-FEIRA]])*(ROUNDDOWN($B30,10)>=ROUNDDOWN(ListaDeAulas[HORA DE INÍCIO],10))*($B30<=ListaDeAulas[HORA DE FIM]),ListaDeAulas[EXCLUSIVO]),ListaDeAulas[EXCLUSIVO],0),2),0)","v":0},{"$f":"IFERROR(INDEX(ListaDeAulas[],MATCH(SUMPRODUCT((ListaDeAulas[DIA]=HorárioDeAulas[[#Headers],[TERÇA-FEIRA]])*(ROUNDDOWN($B30,10)>=ROUNDDOWN(ListaDeAulas[HORA DE INÍCIO],10))*($B30<=ListaDeAulas[HORA DE FIM]),ListaDeAulas[EXCLUSIVO]),ListaDeAulas[EXCLUSIVO],0),2),0)","v":0},{"$f":"IFERROR(INDEX(ListaDeAulas[],MATCH(SUMPRODUCT((ListaDeAulas[DIA]=HorárioDeAulas[[#Headers],[QUARTA-FEIRA]])*(ROUNDDOWN($B30,10)>=ROUNDDOWN(ListaDeAulas[HORA DE INÍCIO],10))*($B30<=ListaDeAulas[HORA DE FIM]),ListaDeAulas[EXCLUSIVO]),ListaDeAulas[EXCLUSIVO],0),2),0)","v":0},{"$f":"IFERROR(INDEX(ListaDeAulas[],MATCH(SUMPRODUCT((ListaDeAulas[DIA]=HorárioDeAulas[[#Headers],[QUINTA-FEIRA]])*(ROUNDDOWN($B30,10)>=ROUNDDOWN(ListaDeAulas[HORA DE INÍCIO],10))*($B30<=ListaDeAulas[HORA DE FIM]),ListaDeAulas[EXCLUSIVO]),ListaDeAulas[EXCLUSIVO],0),2),0)","v":0},{"$f":"IFERROR(INDEX(ListaDeAulas[],MATCH(SUMPRODUCT((ListaDeAulas[DIA]=HorárioDeAulas[[#Headers],[SEXTA-FEIRA]])*(ROUNDDOWN($B30,10)>=ROUNDDOWN(ListaDeAulas[HORA DE INÍCIO],10))*($B30<=ListaDeAulas[HORA DE FIM]),ListaDeAulas[EXCLUSIVO]),ListaDeAulas[EXCLUSIVO],0),2),0)","v":0},{"$f":"IFERROR(INDEX(ListaDeAulas[],MATCH(SUMPRODUCT((ListaDeAulas[DIA]=HorárioDeAulas[[#Headers],[SÁBADO]])*(ROUNDDOWN($B30,10)>=ROUNDDOWN(ListaDeAulas[HORA DE INÍCIO],10))*($B30<=ListaDeAulas[HORA DE FIM]),ListaDeAulas[EXCLUSIVO]),ListaDeAulas[EXCLUSIVO],0),2),0)","v":0}]
[null,"14:45:00",{"$f":"IFERROR(INDEX(ListaDeAulas[],MATCH(SUMPRODUCT((ListaDeAulas[DIA]=HorárioDeAulas[[#Headers],[DOMINGO]])*(ROUNDDOWN($B31,10)>=ROUNDDOWN(ListaDeAulas[HORA DE INÍCIO],10))*($B31<=ListaDeAulas[HORA DE FIM]),ListaDeAulas[EXCLUSIVO]),ListaDeAulas[EXCLUSIVO],0),2),0)","v":0},{"$f":"IFERROR(INDEX(ListaDeAulas[],MATCH(SUMPRODUCT((ListaDeAulas[DIA]=HorárioDeAulas[[#Headers],[SEGUNDA-FEIRA]])*(ROUNDDOWN($B31,10)>=ROUNDDOWN(ListaDeAulas[HORA DE INÍCIO],10))*($B31<=ListaDeAulas[HORA DE FIM]),ListaDeAulas[EXCLUSIVO]),ListaDeAulas[EXCLUSIVO],0),2),0)","v":0},{"$f":"IFERROR(INDEX(ListaDeAulas[],MATCH(SUMPRODUCT((ListaDeAulas[DIA]=HorárioDeAulas[[#Headers],[TERÇA-FEIRA]])*(ROUNDDOWN($B31,10)>=ROUNDDOWN(ListaDeAulas[HORA DE INÍCIO],10))*($B31<=ListaDeAulas[HORA DE FIM]),ListaDeAulas[EXCLUSIVO]),ListaDeAulas[EXCLUSIVO],0),2),0)","v":0},{"$f":"IFERROR(INDEX(ListaDeAulas[],MATCH(SUMPRODUCT((ListaDeAulas[DIA]=HorárioDeAulas[[#Headers],[QUARTA-FEIRA]])*(ROUNDDOWN($B31,10)>=ROUNDDOWN(ListaDeAulas[HORA DE INÍCIO],10))*($B31<=ListaDeAulas[HORA DE FIM]),ListaDeAulas[EXCLUSIVO]),ListaDeAulas[EXCLUSIVO],0),2),0)","v":0},{"$f":"IFERROR(INDEX(ListaDeAulas[],MATCH(SUMPRODUCT((ListaDeAulas[DIA]=HorárioDeAulas[[#Headers],[QUINTA-FEIRA]])*(ROUNDDOWN($B31,10)>=ROUNDDOWN(ListaDeAulas[HORA DE INÍCIO],10))*($B31<=ListaDeAulas[HORA DE FIM]),ListaDeAulas[EXCLUSIVO]),ListaDeAulas[EXCLUSIVO],0),2),0)","v":0},{"$f":"IFERROR(INDEX(ListaDeAulas[],MATCH(SUMPRODUCT((ListaDeAulas[DIA]=HorárioDeAulas[[#Headers],[SEXTA-FEIRA]])*(ROUNDDOWN($B31,10)>=ROUNDDOWN(ListaDeAulas[HORA DE INÍCIO],10))*($B31<=ListaDeAulas[HORA DE FIM]),ListaDeAulas[EXCLUSIVO]),ListaDeAulas[EXCLUSIVO],0),2),0)","v":0},{"$f":"IFERROR(INDEX(ListaDeAulas[],MATCH(SUMPRODUCT((ListaDeAulas[DIA]=HorárioDeAulas[[#Headers],[SÁBADO]])*(ROUNDDOWN($B31,10)>=ROUNDDOWN(ListaDeAulas[HORA DE INÍCIO],10))*($B31<=ListaDeAulas[HORA DE FIM]),ListaDeAulas[EXCLUSIVO]),ListaDeAulas[EXCLUSIVO],0),2),0)","v":0}]
[null,"15:00:00",{"$f":"IFERROR(INDEX(ListaDeAulas[],MATCH(SUMPRODUCT((ListaDeAulas[DIA]=HorárioDeAulas[[#Headers],[DOMINGO]])*(ROUNDDOWN($B32,10)>=ROUNDDOWN(ListaDeAulas[HORA DE INÍCIO],10))*($B32<=ListaDeAulas[HORA DE FIM]),ListaDeAulas[EXCLUSIVO]),ListaDeAulas[EXCLUSIVO],0),2),0)","v":0},{"$f":"IFERROR(INDEX(ListaDeAulas[],MATCH(SUMPRODUCT((ListaDeAulas[DIA]=HorárioDeAulas[[#Headers],[SEGUNDA-FEIRA]])*(ROUNDDOWN($B32,10)>=ROUNDDOWN(ListaDeAulas[HORA DE INÍCIO],10))*($B32<=ListaDeAulas[HORA DE FIM]),ListaDeAulas[EXCLUSIVO]),ListaDeAulas[EXCLUSIVO],0),2),0)","v":0},{"$f":"IFERROR(INDEX(ListaDeAulas[],MATCH(SUMPRODUCT((ListaDeAulas[DIA]=HorárioDeAulas[[#Headers],[TERÇA-FEIRA]])*(ROUNDDOWN($B32,10)>=ROUNDDOWN(ListaDeAulas[HORA DE INÍCIO],10))*($B32<=ListaDeAulas[HORA DE FIM]),ListaDeAulas[EXCLUSIVO]),ListaDeAulas[EXCLUSIVO],0),2),0)","v":0},{"$f":"IFERROR(INDEX(ListaDeAulas[],MATCH(SUMPRODUCT((ListaDeAulas[DIA]=HorárioDeAulas[[#Headers],[QUARTA-FEIRA]])*(ROUNDDOWN($B32,10)>=ROUNDDOWN(ListaDeAulas[HORA DE INÍCIO],10))*($B32<=ListaDeAulas[HORA DE FIM]),ListaDeAulas[EXCLUSIVO]),ListaDeAulas[EXCLUSIVO],0),2),0)","v":0},{"$f":"IFERROR(INDEX(ListaDeAulas[],MATCH(SUMPRODUCT((ListaDeAulas[DIA]=HorárioDeAulas[[#Headers],[QUINTA-FEIRA]])*(ROUNDDOWN($B32,10)>=ROUNDDOWN(ListaDeAulas[HORA DE INÍCIO],10))*($B32<=ListaDeAulas[HORA DE FIM]),ListaDeAulas[EXCLUSIVO]),ListaDeAulas[EXCLUSIVO],0),2),0)","v":0},{"$f":"IFERROR(INDEX(ListaDeAulas[],MATCH(SUMPRODUCT((ListaDeAulas[DIA]=HorárioDeAulas[[#Headers],[SEXTA-FEIRA]])*(ROUNDDOWN($B32,10)>=ROUNDDOWN(ListaDeAulas[HORA DE INÍCIO],10))*($B32<=ListaDeAulas[HORA DE FIM]),ListaDeAulas[EXCLUSIVO]),ListaDeAulas[EXCLUSIVO],0),2),0)","v":0},{"$f":"IFERROR(INDEX(ListaDeAulas[],MATCH(SUMPRODUCT((ListaDeAulas[DIA]=HorárioDeAulas[[#Headers],[SÁBADO]])*(ROUNDDOWN($B32,10)>=ROUNDDOWN(ListaDeAulas[HORA DE INÍCIO],10))*($B32<=ListaDeAulas[HORA DE FIM]),ListaDeAulas[EXCLUSIVO]),ListaDeAulas[EXCLUSIVO],0),2),0)","v":0}]
[null,"15:15:00",{"$f":"IFERROR(INDEX(ListaDeAulas[],MATCH(SUMPRODUCT((ListaDeAulas[DIA]=HorárioDeAulas[[#Headers],[DOMINGO]])*(ROUNDDOWN($B33,10)>=ROUNDDOWN(ListaDeAulas[HORA DE INÍCIO],10))*($B33<=ListaDeAulas[HORA DE FIM]),ListaDeAulas[EXCLUSIVO]),ListaDeAulas[EXCLUSIVO],0),2),0)","v":0},{"$f":"IFERROR(INDEX(ListaDeAulas[],MATCH(SUMPRODUCT((ListaDeAulas[DIA]=HorárioDeAulas[[#Headers],[SEGUNDA-FEIRA]])*(ROUNDDOWN($B33,10)>=ROUNDDOWN(ListaDeAulas[HORA DE INÍCIO],10))*($B33<=ListaDeAulas[HORA DE FIM]),ListaDeAulas[EXCLUSIVO]),ListaDeAulas[EXCLUSIVO],0),2),0)","v":0},{"$f":"IFERROR(INDEX(ListaDeAulas[],MATCH(SUMPRODUCT((ListaDeAulas[DIA]=HorárioDeAulas[[#Headers],[TERÇA-FEIRA]])*(ROUNDDOWN($B33,10)>=ROUNDDOWN(ListaDeAulas[HORA DE INÍCIO],10))*($B33<=ListaDeAulas[HORA DE FIM]),ListaDeAulas[EXCLUSIVO]),ListaDeAulas[EXCLUSIVO],0),2),0)","v":0},{"$f":"IFERROR(INDEX(ListaDeAulas[],MATCH(SUMPRODUCT((ListaDeAulas[DIA]=HorárioDeAulas[[#Headers],[QUARTA-FEIRA]])*(ROUNDDOWN($B33,10)>=ROUNDDOWN(ListaDeAulas[HORA DE INÍCIO],10))*($B33<=ListaDeAulas[HORA DE FIM]),ListaDeAulas[EXCLUSIVO]),ListaDeAulas[EXCLUSIVO],0),2),0)","v":0},{"$f":"IFERROR(INDEX(ListaDeAulas[],MATCH(SUMPRODUCT((ListaDeAulas[DIA]=HorárioDeAulas[[#Headers],[QUINTA-FEIRA]])*(ROUNDDOWN($B33,10)>=ROUNDDOWN(ListaDeAulas[HORA DE INÍCIO],10))*($B33<=ListaDeAulas[HORA DE FIM]),ListaDeAulas[EXCLUSIVO]),ListaDeAulas[EXCLUSIVO],0),2),0)","v":0},{"$f":"IFERROR(INDEX(ListaDeAulas[],MATCH(SUMPRODUCT((ListaDeAulas[DIA]=HorárioDeAulas[[#Headers],[SEXTA-FEIRA]])*(ROUNDDOWN($B33,10)>=ROUNDDOWN(ListaDeAulas[HORA DE INÍCIO],10))*($B33<=ListaDeAulas[HORA DE FIM]),ListaDeAulas[EXCLUSIVO]),ListaDeAulas[EXCLUSIVO],0),2),0)","v":0},{"$f":"IFERROR(INDEX(ListaDeAulas[],MATCH(SUMPRODUCT((ListaDeAulas[DIA]=HorárioDeAulas[[#Headers],[SÁBADO]])*(ROUNDDOWN($B33,10)>=ROUNDDOWN(ListaDeAulas[HORA DE INÍCIO],10))*($B33<=ListaDeAulas[HORA DE FIM]),ListaDeAulas[EXCLUSIVO]),ListaDeAulas[EXCLUSIVO],0),2),0)","v":0}]
[null,"15:30:00",{"$f":"IFERROR(INDEX(ListaDeAulas[],MATCH(SUMPRODUCT((ListaDeAulas[DIA]=HorárioDeAulas[[#Headers],[DOMINGO]])*(ROUNDDOWN($B34,10)>=ROUNDDOWN(ListaDeAulas[HORA DE INÍCIO],10))*($B34<=ListaDeAulas[HORA DE FIM]),ListaDeAulas[EXCLUSIVO]),ListaDeAulas[EXCLUSIVO],0),2),0)","v":0},{"$f":"IFERROR(INDEX(ListaDeAulas[],MATCH(SUMPRODUCT((ListaDeAulas[DIA]=HorárioDeAulas[[#Headers],[SEGUNDA-FEIRA]])*(ROUNDDOWN($B34,10)>=ROUNDDOWN(ListaDeAulas[HORA DE INÍCIO],10))*($B34<=ListaDeAulas[HORA DE FIM]),ListaDeAulas[EXCLUSIVO]),ListaDeAulas[EXCLUSIVO],0),2),0)","v":0},{"$f":"IFERROR(INDEX(ListaDeAulas[],MATCH(SUMPRODUCT((ListaDeAulas[DIA]=HorárioDeAulas[[#Headers],[TERÇA-FEIRA]])*(ROUNDDOWN($B34,10)>=ROUNDDOWN(ListaDeAulas[HORA DE INÍCIO],10))*($B34<=ListaDeAulas[HORA DE FIM]),ListaDeAulas[EXCLUSIVO]),ListaDeAulas[EXCLUSIVO],0),2),0)","v":0},{"$f":"IFERROR(INDEX(ListaDeAulas[],MATCH(SUMPRODUCT((ListaDeAulas[DIA]=HorárioDeAulas[[#Headers],[QUARTA-FEIRA]])*(ROUNDDOWN($B34,10)>=ROUNDDOWN(ListaDeAulas[HORA DE INÍCIO],10))*($B34<=ListaDeAulas[HORA DE FIM]),ListaDeAulas[EXCLUSIVO]),ListaDeAulas[EXCLUSIVO],0),2),0)","v":0},{"$f":"IFERROR(INDEX(ListaDeAulas[],MATCH(SUMPRODUCT((ListaDeAulas[DIA]=HorárioDeAulas[[#Headers],[QUINTA-FEIRA]])*(ROUNDDOWN($B34,10)>=ROUNDDOWN(ListaDeAulas[HORA DE INÍCIO],10))*($B34<=ListaDeAulas[HORA DE FIM]),ListaDeAulas[EXCLUSIVO]),ListaDeAulas[EXCLUSIVO],0),2),0)","v":0},{"$f":"IFERROR(INDEX(ListaDeAulas[],MATCH(SUMPRODUCT((ListaDeAulas[DIA]=HorárioDeAulas[[#Headers],[SEXTA-FEIRA]])*(ROUNDDOWN($B34,10)>=ROUNDDOWN(ListaDeAulas[HORA DE INÍCIO],10))*($B34<=ListaDeAulas[HORA DE FIM]),ListaDeAulas[EXCLUSIVO]),ListaDeAulas[EXCLUSIVO],0),2),0)","v":0},{"$f":"IFERROR(INDEX(ListaDeAulas[],MATCH(SUMPRODUCT((ListaDeAulas[DIA]=HorárioDeAulas[[#Headers],[SÁBADO]])*(ROUNDDOWN($B34,10)>=ROUNDDOWN(ListaDeAulas[HORA DE INÍCIO],10))*($B34<=ListaDeAulas[HORA DE FIM]),ListaDeAulas[EXCLUSIVO]),ListaDeAulas[EXCLUSIVO],0),2),0)","v":0}]
[null,"15:45:00",{"$f":"IFERROR(INDEX(ListaDeAulas[],MATCH(SUMPRODUCT((ListaDeAulas[DIA]=HorárioDeAulas[[#Headers],[DOMINGO]])*(ROUNDDOWN($B35,10)>=ROUNDDOWN(ListaDeAulas[HORA DE INÍCIO],10))*($B35<=ListaDeAulas[HORA DE FIM]),ListaDeAulas[EXCLUSIVO]),ListaDeAulas[EXCLUSIVO],0),2),0)","v":0},{"$f":"IFERROR(INDEX(ListaDeAulas[],MATCH(SUMPRODUCT((ListaDeAulas[DIA]=HorárioDeAulas[[#Headers],[SEGUNDA-FEIRA]])*(ROUNDDOWN($B35,10)>=ROUNDDOWN(ListaDeAulas[HORA DE INÍCIO],10))*($B35<=ListaDeAulas[HORA DE FIM]),ListaDeAulas[EXCLUSIVO]),ListaDeAulas[EXCLUSIVO],0),2),0)","v":0},{"$f":"IFERROR(INDEX(ListaDeAulas[],MATCH(SUMPRODUCT((ListaDeAulas[DIA]=HorárioDeAulas[[#Headers],[TERÇA-FEIRA]])*(ROUNDDOWN($B35,10)>=ROUNDDOWN(ListaDeAulas[HORA DE INÍCIO],10))*($B35<=ListaDeAulas[HORA DE FIM]),ListaDeAulas[EXCLUSIVO]),ListaDeAulas[EXCLUSIVO],0),2),0)","v":0},{"$f":"IFERROR(INDEX(ListaDeAulas[],MATCH(SUMPRODUCT((ListaDeAulas[DIA]=HorárioDeAulas[[#Headers],[QUARTA-FEIRA]])*(ROUNDDOWN($B35,10)>=ROUNDDOWN(ListaDeAulas[HORA DE INÍCIO],10))*($B35<=ListaDeAulas[HORA DE FIM]),ListaDeAulas[EXCLUSIVO]),ListaDeAulas[EXCLUSIVO],0),2),0)","v":0},{"$f":"IFERROR(INDEX(ListaDeAulas[],MATCH(SUMPRODUCT((ListaDeAulas[DIA]=HorárioDeAulas[[#Headers],[QUINTA-FEIRA]])*(ROUNDDOWN($B35,10)>=ROUNDDOWN(ListaDeAulas[HORA DE INÍCIO],10))*($B35<=ListaDeAulas[HORA DE FIM]),ListaDeAulas[EXCLUSIVO]),ListaDeAulas[EXCLUSIVO],0),2),0)","v":0},{"$f":"IFERROR(INDEX(ListaDeAulas[],MATCH(SUMPRODUCT((ListaDeAulas[DIA]=HorárioDeAulas[[#Headers],[SEXTA-FEIRA]])*(ROUNDDOWN($B35,10)>=ROUNDDOWN(ListaDeAulas[HORA DE INÍCIO],10))*($B35<=ListaDeAulas[HORA DE FIM]),ListaDeAulas[EXCLUSIVO]),ListaDeAulas[EXCLUSIVO],0),2),0)","v":0},{"$f":"IFERROR(INDEX(ListaDeAulas[],MATCH(SUMPRODUCT((ListaDeAulas[DIA]=HorárioDeAulas[[#Headers],[SÁBADO]])*(ROUNDDOWN($B35,10)>=ROUNDDOWN(ListaDeAulas[HORA DE INÍCIO],10))*($B35<=ListaDeAulas[HORA DE FIM]),ListaDeAulas[EXCLUSIVO]),ListaDeAulas[EXCLUSIVO],0),2),0)","v":0}]
[null,"16:00:00",{"$f":"IFERROR(INDEX(ListaDeAulas[],MATCH(SUMPRODUCT((ListaDeAulas[DIA]=HorárioDeAulas[[#Headers],[DOMINGO]])*(ROUNDDOWN($B36,10)>=ROUNDDOWN(ListaDeAulas[HORA DE INÍCIO],10))*($B36<=ListaDeAulas[HORA DE FIM]),ListaDeAulas[EXCLUSIVO]),ListaDeAulas[EXCLUSIVO],0),2),0)","v":0},{"$f":"IFERROR(INDEX(ListaDeAulas[],MATCH(SUMPRODUCT((ListaDeAulas[DIA]=HorárioDeAulas[[#Headers],[SEGUNDA-FEIRA]])*(ROUNDDOWN($B36,10)>=ROUNDDOWN(ListaDeAulas[HORA DE INÍCIO],10))*($B36<=ListaDeAulas[HORA DE FIM]),ListaDeAulas[EXCLUSIVO]),ListaDeAulas[EXCLUSIVO],0),2),0)","v":"DO-111"},{"$f":"IFERROR(INDEX(ListaDeAulas[],MATCH(SUMPRODUCT((ListaDeAulas[DIA]=HorárioDeAulas[[#Headers],[TERÇA-FEIRA]])*(ROUNDDOWN($B36,10)>=ROUNDDOWN(ListaDeAulas[HORA DE INÍCIO],10))*($B36<=ListaDeAulas[HORA DE FIM]),ListaDeAulas[EXCLUSIVO]),ListaDeAulas[EXCLUSIVO],0),2),0)","v":0},{"$f":"IFERROR(INDEX(ListaDeAulas[],MATCH(SUMPRODUCT((ListaDeAulas[DIA]=HorárioDeAulas[[#Headers],[QUARTA-FEIRA]])*(ROUNDDOWN($B36,10)>=ROUNDDOWN(ListaDeAulas[HORA DE INÍCIO],10))*($B36<=ListaDeAulas[HORA DE FIM]),ListaDeAulas[EXCLUSIVO]),ListaDeAulas[EXCLUSIVO],0),2),0)","v":0},{"$f":"IFERROR(INDEX(ListaDeAulas[],MATCH(SUMPRODUCT((ListaDeAulas[DIA]=HorárioDeAulas[[#Headers],[QUINTA-FEIRA]])*(ROUNDDOWN($B36,10)>=ROUNDDOWN(ListaDeAulas[HORA DE INÍCIO],10))*($B36<=ListaDeAulas[HORA DE FIM]),ListaDeAulas[EXCLUSIVO]),ListaDeAulas[EXCLUSIVO],0),2),0)","v":0},{"$f":"IFERROR(INDEX(ListaDeAulas[],MATCH(SUMPRODUCT((ListaDeAulas[DIA]=HorárioDeAulas[[#Headers],[SEXTA-FEIRA]])*(ROUNDDOWN($B36,10)>=ROUNDDOWN(ListaDeAulas[HORA DE INÍCIO],10))*($B36<=ListaDeAulas[HORA DE FIM]),ListaDeAulas[EXCLUSIVO]),ListaDeAulas[EXCLUSIVO],0),2),0)","v":0},{"$f":"IFERROR(INDEX(ListaDeAulas[],MATCH(SUMPRODUCT((ListaDeAulas[DIA]=HorárioDeAulas[[#Headers],[SÁBADO]])*(ROUNDDOWN($B36,10)>=ROUNDDOWN(ListaDeAulas[HORA DE INÍCIO],10))*($B36<=ListaDeAulas[HORA DE FIM]),ListaDeAulas[EXCLUSIVO]),ListaDeAulas[EXCLUSIVO],0),2),0)","v":0}]
[null,"16:15:00",{"$f":"IFERROR(INDEX(ListaDeAulas[],MATCH(SUMPRODUCT((ListaDeAulas[DIA]=HorárioDeAulas[[#Headers],[DOMINGO]])*(ROUNDDOWN($B37,10)>=ROUNDDOWN(ListaDeAulas[HORA DE INÍCIO],10))*($B37<=ListaDeAulas[HORA DE FIM]),ListaDeAulas[EXCLUSIVO]),ListaDeAulas[EXCLUSIVO],0),2),0)","v":0},{"$f":"IFERROR(INDEX(ListaDeAulas[],MATCH(SUMPRODUCT((ListaDeAulas[DIA]=HorárioDeAulas[[#Headers],[SEGUNDA-FEIRA]])*(ROUNDDOWN($B37,10)>=ROUNDDOWN(ListaDeAulas[HORA DE INÍCIO],10))*($B37<=ListaDeAulas[HORA DE FIM]),ListaDeAulas[EXCLUSIVO]),ListaDeAulas[EXCLUSIVO],0),2),0)","v":"DO-111"},{"$f":"IFERROR(INDEX(ListaDeAulas[],MATCH(SUMPRODUCT((ListaDeAulas[DIA]=HorárioDeAulas[[#Headers],[TERÇA-FEIRA]])*(ROUNDDOWN($B37,10)>=ROUNDDOWN(ListaDeAulas[HORA DE INÍCIO],10))*($B37<=ListaDeAulas[HORA DE FIM]),ListaDeAulas[EXCLUSIVO]),ListaDeAulas[EXCLUSIVO],0),2),0)","v":0},{"$f":"IFERROR(INDEX(ListaDeAulas[],MATCH(SUMPRODUCT((ListaDeAulas[DIA]=HorárioDeAulas[[#Headers],[QUARTA-FEIRA]])*(ROUNDDOWN($B37,10)>=ROUNDDOWN(ListaDeAulas[HORA DE INÍCIO],10))*($B37<=ListaDeAulas[HORA DE FIM]),ListaDeAulas[EXCLUSIVO]),ListaDeAulas[EXCLUSIVO],0),2),0)","v":0},{"$f":"IFERROR(INDEX(ListaDeAulas[],MATCH(SUMPRODUCT((ListaDeAulas[DIA]=HorárioDeAulas[[#Headers],[QUINTA-FEIRA]])*(ROUNDDOWN($B37,10)>=ROUNDDOWN(ListaDeAulas[HORA DE INÍCIO],10))*($B37<=ListaDeAulas[HORA DE FIM]),ListaDeAulas[EXCLUSIVO]),ListaDeAulas[EXCLUSIVO],0),2),0)","v":0},{"$f":"IFERROR(INDEX(ListaDeAulas[],MATCH(SUMPRODUCT((ListaDeAulas[DIA]=HorárioDeAulas[[#Headers],[SEXTA-FEIRA]])*(ROUNDDOWN($B37,10)>=ROUNDDOWN(ListaDeAulas[HORA DE INÍCIO],10))*($B37<=ListaDeAulas[HORA DE FIM]),ListaDeAulas[EXCLUSIVO]),ListaDeAulas[EXCLUSIVO],0),2),0)","v":0},{"$f":"IFERROR(INDEX(ListaDeAulas[],MATCH(SUMPRODUCT((ListaDeAulas[DIA]=HorárioDeAulas[[#Headers],[SÁBADO]])*(ROUNDDOWN($B37,10)>=ROUNDDOWN(ListaDeAulas[HORA DE INÍCIO],10))*($B37<=ListaDeAulas[HORA DE FIM]),ListaDeAulas[EXCLUSIVO]),ListaDeAulas[EXCLUSIVO],0),2),0)","v":0}]
[null,"16:30:00",{"$f":"IFERROR(INDEX(ListaDeAulas[],MATCH(SUMPRODUCT((ListaDeAulas[DIA]=HorárioDeAulas[[#Headers],[DOMINGO]])*(ROUNDDOWN($B38,10)>=ROUNDDOWN(ListaDeAulas[HORA DE INÍCIO],10))*($B38<=ListaDeAulas[HORA DE FIM]),ListaDeAulas[EXCLUSIVO]),ListaDeAulas[EXCLUSIVO],0),2),0)","v":0},{"$f":"IFERROR(INDEX(ListaDeAulas[],MATCH(SUMPRODUCT((ListaDeAulas[DIA]=HorárioDeAulas[[#Headers],[SEGUNDA-FEIRA]])*(ROUNDDOWN($B38,10)>=ROUNDDOWN(ListaDeAulas[HORA DE INÍCIO],10))*($B38<=ListaDeAulas[HORA DE FIM]),ListaDeAulas[EXCLUSIVO]),ListaDeAulas[EXCLUSIVO],0),2),0)","v":"DO-111"},{"$f":"IFERROR(INDEX(ListaDeAulas[],MATCH(SUMPRODUCT((ListaDeAulas[DIA]=HorárioDeAulas[[#Headers],[TERÇA-FEIRA]])*(ROUNDDOWN($B38,10)>=ROUNDDOWN(ListaDeAulas[HORA DE INÍCIO],10))*($B38<=ListaDeAulas[HORA DE FIM]),ListaDeAulas[EXCLUSIVO]),ListaDeAulas[EXCLUSIVO],0),2),0)","v":0},{"$f":"IFERROR(INDEX(ListaDeAulas[],MATCH(SUMPRODUCT((ListaDeAulas[DIA]=HorárioDeAulas[[#Headers],[QUARTA-FEIRA]])*(ROUNDDOWN($B38,10)>=ROUNDDOWN(ListaDeAulas[HORA DE INÍCIO],10))*($B38<=ListaDeAulas[HORA DE FIM]),ListaDeAulas[EXCLUSIVO]),ListaDeAulas[EXCLUSIVO],0),2),0)","v":0},{"$f":"IFERROR(INDEX(ListaDeAulas[],MATCH(SUMPRODUCT((ListaDeAulas[DIA]=HorárioDeAulas[[#Headers],[QUINTA-FEIRA]])*(ROUNDDOWN($B38,10)>=ROUNDDOWN(ListaDeAulas[HORA DE INÍCIO],10))*($B38<=ListaDeAulas[HORA DE FIM]),ListaDeAulas[EXCLUSIVO]),ListaDeAulas[EXCLUSIVO],0),2),0)","v":0},{"$f":"IFERROR(INDEX(ListaDeAulas[],MATCH(SUMPRODUCT((ListaDeAulas[DIA]=HorárioDeAulas[[#Headers],[SEXTA-FEIRA]])*(ROUNDDOWN($B38,10)>=ROUNDDOWN(ListaDeAulas[HORA DE INÍCIO],10))*($B38<=ListaDeAulas[HORA DE FIM]),ListaDeAulas[EXCLUSIVO]),ListaDeAulas[EXCLUSIVO],0),2),0)","v":0},{"$f":"IFERROR(INDEX(ListaDeAulas[],MATCH(SUMPRODUCT((ListaDeAulas[DIA]=HorárioDeAulas[[#Headers],[SÁBADO]])*(ROUNDDOWN($B38,10)>=ROUNDDOWN(ListaDeAulas[HORA DE INÍCIO],10))*($B38<=ListaDeAulas[HORA DE FIM]),ListaDeAulas[EXCLUSIVO]),ListaDeAulas[EXCLUSIVO],0),2),0)","v":0}]
[null,"16:45:00",{"$f":"IFERROR(INDEX(ListaDeAulas[],MATCH(SUMPRODUCT((ListaDeAulas[DIA]=HorárioDeAulas[[#Headers],[DOMINGO]])*(ROUNDDOWN($B39,10)>=ROUNDDOWN(ListaDeAulas[HORA DE INÍCIO],10))*($B39<=ListaDeAulas[HORA DE FIM]),ListaDeAulas[EXCLUSIVO]),ListaDeAulas[EXCLUSIVO],0),2),0)","v":0},{"$f":"IFERROR(INDEX(ListaDeAulas[],MATCH(SUMPRODUCT((ListaDeAulas[DIA]=HorárioDeAulas[[#Headers],[SEGUNDA-FEIRA]])*(ROUNDDOWN($B39,10)>=ROUNDDOWN(ListaDeAulas[HORA DE INÍCIO],10))*($B39<=ListaDeAulas[HORA DE FIM]),ListaDeAulas[EXCLUSIVO]),ListaDeAulas[EXCLUSIVO],0),2),0)","v":"DO-111"},{"$f":"IFERROR(INDEX(ListaDeAulas[],MATCH(SUMPRODUCT((ListaDeAulas[DIA]=HorárioDeAulas[[#Headers],[TERÇA-FEIRA]])*(ROUNDDOWN($B39,10)>=ROUNDDOWN(ListaDeAulas[HORA DE INÍCIO],10))*($B39<=ListaDeAulas[HORA DE FIM]),ListaDeAulas[EXCLUSIVO]),ListaDeAulas[EXCLUSIVO],0),2),0)","v":0},{"$f":"IFERROR(INDEX(ListaDeAulas[],MATCH(SUMPRODUCT((ListaDeAulas[DIA]=HorárioDeAulas[[#Headers],[QUARTA-FEIRA]])*(ROUNDDOWN($B39,10)>=ROUNDDOWN(ListaDeAulas[HORA DE INÍCIO],10))*($B39<=ListaDeAulas[HORA DE FIM]),ListaDeAulas[EXCLUSIVO]),ListaDeAulas[EXCLUSIVO],0),2),0)","v":0},{"$f":"IFERROR(INDEX(ListaDeAulas[],MATCH(SUMPRODUCT((ListaDeAulas[DIA]=HorárioDeAulas[[#Headers],[QUINTA-FEIRA]])*(ROUNDDOWN($B39,10)>=ROUNDDOWN(ListaDeAulas[HORA DE INÍCIO],10))*($B39<=ListaDeAulas[HORA DE FIM]),ListaDeAulas[EXCLUSIVO]),ListaDeAulas[EXCLUSIVO],0),2),0)","v":0},{"$f":"IFERROR(INDEX(ListaDeAulas[],MATCH(SUMPRODUCT((ListaDeAulas[DIA]=HorárioDeAulas[[#Headers],[SEXTA-FEIRA]])*(ROUNDDOWN($B39,10)>=ROUNDDOWN(ListaDeAulas[HORA DE INÍCIO],10))*($B39<=ListaDeAulas[HORA DE FIM]),ListaDeAulas[EXCLUSIVO]),ListaDeAulas[EXCLUSIVO],0),2),0)","v":0},{"$f":"IFERROR(INDEX(ListaDeAulas[],MATCH(SUMPRODUCT((ListaDeAulas[DIA]=HorárioDeAulas[[#Headers],[SÁBADO]])*(ROUNDDOWN($B39,10)>=ROUNDDOWN(ListaDeAulas[HORA DE INÍCIO],10))*($B39<=ListaDeAulas[HORA DE FIM]),ListaDeAulas[EXCLUSIVO]),ListaDeAulas[EXCLUSIVO],0),2),0)","v":0}]
[null,"17:00:00",{"$f":"IFERROR(INDEX(ListaDeAulas[],MATCH(SUMPRODUCT((ListaDeAulas[DIA]=HorárioDeAulas[[#Headers],[DOMINGO]])*(ROUNDDOWN($B40,10)>=ROUNDDOWN(ListaDeAulas[HORA DE INÍCIO],10))*($B40<=ListaDeAulas[HORA DE FIM]),ListaDeAulas[EXCLUSIVO]),ListaDeAulas[EXCLUSIVO],0),2),0)","v":0},{"$f":"IFERROR(INDEX(ListaDeAulas[],MATCH(SUMPRODUCT((ListaDeAulas[DIA]=HorárioDeAulas[[#Headers],[SEGUNDA-FEIRA]])*(ROUNDDOWN($B40,10)>=ROUNDDOWN(ListaDeAulas[HORA DE INÍCIO],10))*($B40<=ListaDeAulas[HORA DE FIM]),ListaDeAulas[EXCLUSIVO]),ListaDeAulas[EXCLUSIVO],0),2),0)","v":"DO-111"},{"$f":"IFERROR(INDEX(ListaDeAulas[],MATCH(SUMPRODUCT((ListaDeAulas[DIA]=HorárioDeAulas[[#Headers],[TERÇA-FEIRA]])*(ROUNDDOWN($B40,10)>=ROUNDDOWN(ListaDeAulas[HORA DE INÍCIO],10))*($B40<=ListaDeAulas[HORA DE FIM]),ListaDeAulas[EXCLUSIVO]),ListaDeAulas[EXCLUSIVO],0),2),0)","v":0},{"$f":"IFERROR(INDEX(ListaDeAulas[],MATCH(SUMPRODUCT((ListaDeAulas[DIA]=HorárioDeAulas[[#Headers],[QUARTA-FEIRA]])*(ROUNDDOWN($B40,10)>=ROUNDDOWN(ListaDeAulas[HORA DE INÍCIO],10))*($B40<=ListaDeAulas[HORA DE FIM]),ListaDeAulas[EXCLUSIVO]),ListaDeAulas[EXCLUSIVO],0),2),0)","v":0},{"$f":"IFERROR(INDEX(ListaDeAulas[],MATCH(SUMPRODUCT((ListaDeAulas[DIA]=HorárioDeAulas[[#Headers],[QUINTA-FEIRA]])*(ROUNDDOWN($B40,10)>=ROUNDDOWN(ListaDeAulas[HORA DE INÍCIO],10))*($B40<=ListaDeAulas[HORA DE FIM]),ListaDeAulas[EXCLUSIVO]),ListaDeAulas[EXCLUSIVO],0),2),0)","v":0},{"$f":"IFERROR(INDEX(ListaDeAulas[],MATCH(SUMPRODUCT((ListaDeAulas[DIA]=HorárioDeAulas[[#Headers],[SEXTA-FEIRA]])*(ROUNDDOWN($B40,10)>=ROUNDDOWN(ListaDeAulas[HORA DE INÍCIO],10))*($B40<=ListaDeAulas[HORA DE FIM]),ListaDeAulas[EXCLUSIVO]),ListaDeAulas[EXCLUSIVO],0),2),0)","v":0},{"$f":"IFERROR(INDEX(ListaDeAulas[],MATCH(SUMPRODUCT((ListaDeAulas[DIA]=HorárioDeAulas[[#Headers],[SÁBADO]])*(ROUNDDOWN($B40,10)>=ROUNDDOWN(ListaDeAulas[HORA DE INÍCIO],10))*($B40<=ListaDeAulas[HORA DE FIM]),ListaDeAulas[EXCLUSIVO]),ListaDeAulas[EXCLUSIVO],0),2),0)","v":0}]
[null,"17:15:00",{"$f":"IFERROR(INDEX(ListaDeAulas[],MATCH(SUMPRODUCT((ListaDeAulas[DIA]=HorárioDeAulas[[#Headers],[DOMINGO]])*(ROUNDDOWN($B41,10)>=ROUNDDOWN(ListaDeAulas[HORA DE INÍCIO],10))*($B41<=ListaDeAulas[HORA DE FIM]),ListaDeAulas[EXCLUSIVO]),ListaDeAulas[EXCLUSIVO],0),2),0)","v":0},{"$f":"IFERROR(INDEX(ListaDeAulas[],MATCH(SUMPRODUCT((ListaDeAulas[DIA]=HorárioDeAulas[[#Headers],[SEGUNDA-FEIRA]])*(ROUNDDOWN($B41,10)>=ROUNDDOWN(ListaDeAulas[HORA DE INÍCIO],10))*($B41<=ListaDeAulas[HORA DE FIM]),ListaDeAulas[EXCLUSIVO]),ListaDeAulas[EXCLUSIVO],0),2),0)","v":0},{"$f":"IFERROR(INDEX(ListaDeAulas[],MATCH(SUMPRODUCT((ListaDeAulas[DIA]=HorárioDeAulas[[#Headers],[TERÇA-FEIRA]])*(ROUNDDOWN($B41,10)>=ROUNDDOWN(ListaDeAulas[HORA DE INÍCIO],10))*($B41<=ListaDeAulas[HORA DE FIM]),ListaDeAulas[EXCLUSIVO]),ListaDeAulas[EXCLUSIVO],0),2),0)","v":0},{"$f":"IFERROR(INDEX(ListaDeAulas[],MATCH(SUMPRODUCT((ListaDeAulas[DIA]=HorárioDeAulas[[#Headers],[QUARTA-FEIRA]])*(ROUNDDOWN($B41,10)>=ROUNDDOWN(ListaDeAulas[HORA DE INÍCIO],10))*($B41<=ListaDeAulas[HORA DE FIM]),ListaDeAulas[EXCLUSIVO]),ListaDeAulas[EXCLUSIVO],0),2),0)","v":0},{"$f":"IFERROR(INDEX(ListaDeAulas[],MATCH(SUMPRODUCT((ListaDeAulas[DIA]=HorárioDeAulas[[#Headers],[QUINTA-FEIRA]])*(ROUNDDOWN($B41,10)>=ROUNDDOWN(ListaDeAulas[HORA DE INÍCIO],10))*($B41<=ListaDeAulas[HORA DE FIM]),ListaDeAulas[EXCLUSIVO]),ListaDeAulas[EXCLUSIVO],0),2),0)","v":0},{"$f":"IFERROR(INDEX(ListaDeAulas[],MATCH(SUMPRODUCT((ListaDeAulas[DIA]=HorárioDeAulas[[#Headers],[SEXTA-FEIRA]])*(ROUNDDOWN($B41,10)>=ROUNDDOWN(ListaDeAulas[HORA DE INÍCIO],10))*($B41<=ListaDeAulas[HORA DE FIM]),ListaDeAulas[EXCLUSIVO]),ListaDeAulas[EXCLUSIVO],0),2),0)","v":0},{"$f":"IFERROR(INDEX(ListaDeAulas[],MATCH(SUMPRODUCT((ListaDeAulas[DIA]=HorárioDeAulas[[#Headers],[SÁBADO]])*(ROUNDDOWN($B41,10)>=ROUNDDOWN(ListaDeAulas[HORA DE INÍCIO],10))*($B41<=ListaDeAulas[HORA DE FIM]),ListaDeAulas[EXCLUSIVO]),ListaDeAulas[EXCLUSIVO],0),2),0)","v":0}]
[null,"17:30:00",{"$f":"IFERROR(INDEX(ListaDeAulas[],MATCH(SUMPRODUCT((ListaDeAulas[DIA]=HorárioDeAulas[[#Headers],[DOMINGO]])*(ROUNDDOWN($B42,10)>=ROUNDDOWN(ListaDeAulas[HORA DE INÍCIO],10))*($B42<=ListaDeAulas[HORA DE FIM]),ListaDeAulas[EXCLUSIVO]),ListaDeAulas[EXCLUSIVO],0),2),0)","v":0},{"$f":"IFERROR(INDEX(ListaDeAulas[],MATCH(SUMPRODUCT((ListaDeAulas[DIA]=HorárioDeAulas[[#Headers],[SEGUNDA-FEIRA]])*(ROUNDDOWN($B42,10)>=ROUNDDOWN(ListaDeAulas[HORA DE INÍCIO],10))*($B42<=ListaDeAulas[HORA DE FIM]),ListaDeAulas[EXCLUSIVO]),ListaDeAulas[EXCLUSIVO],0),2),0)","v":0},{"$f":"IFERROR(INDEX(ListaDeAulas[],MATCH(SUMPRODUCT((ListaDeAulas[DIA]=HorárioDeAulas[[#Headers],[TERÇA-FEIRA]])*(ROUNDDOWN($B42,10)>=ROUNDDOWN(ListaDeAulas[HORA DE INÍCIO],10))*($B42<=ListaDeAulas[HORA DE FIM]),ListaDeAulas[EXCLUSIVO]),ListaDeAulas[EXCLUSIVO],0),2),0)","v":0},{"$f":"IFERROR(INDEX(ListaDeAulas[],MATCH(SUMPRODUCT((ListaDeAulas[DIA]=HorárioDeAulas[[#Headers],[QUARTA-FEIRA]])*(ROUNDDOWN($B42,10)>=ROUNDDOWN(ListaDeAulas[HORA DE INÍCIO],10))*($B42<=ListaDeAulas[HORA DE FIM]),ListaDeAulas[EXCLUSIVO]),ListaDeAulas[EXCLUSIVO],0),2),0)","v":0},{"$f":"IFERROR(INDEX(ListaDeAulas[],MATCH(SUMPRODUCT((ListaDeAulas[DIA]=HorárioDeAulas[[#Headers],[QUINTA-FEIRA]])*(ROUNDDOWN($B42,10)>=ROUNDDOWN(ListaDeAulas[HORA DE INÍCIO],10))*($B42<=ListaDeAulas[HORA DE FIM]),ListaDeAulas[EXCLUSIVO]),ListaDeAulas[EXCLUSIVO],0),2),0)","v":0},{"$f":"IFERROR(INDEX(ListaDeAulas[],MATCH(SUMPRODUCT((ListaDeAulas[DIA]=HorárioDeAulas[[#Headers],[SEXTA-FEIRA]])*(ROUNDDOWN($B42,10)>=ROUNDDOWN(ListaDeAulas[HORA DE INÍCIO],10))*($B42<=ListaDeAulas[HORA DE FIM]),ListaDeAulas[EXCLUSIVO]),ListaDeAulas[EXCLUSIVO],0),2),0)","v":0},{"$f":"IFERROR(INDEX(ListaDeAulas[],MATCH(SUMPRODUCT((ListaDeAulas[DIA]=HorárioDeAulas[[#Headers],[SÁBADO]])*(ROUNDDOWN($B42,10)>=ROUNDDOWN(ListaDeAulas[HORA DE INÍCIO],10))*($B42<=ListaDeAulas[HORA DE FIM]),ListaDeAulas[EXCLUSIVO]),ListaDeAulas[EXCLUSIVO],0),2),0)","v":0}]
[null,"17:45:00",{"$f":"IFERROR(INDEX(ListaDeAulas[],MATCH(SUMPRODUCT((ListaDeAulas[DIA]=HorárioDeAulas[[#Headers],[DOMINGO]])*(ROUNDDOWN($B43,10)>=ROUNDDOWN(ListaDeAulas[HORA DE INÍCIO],10))*($B43<=ListaDeAulas[HORA DE FIM]),ListaDeAulas[EXCLUSIVO]),ListaDeAulas[EXCLUSIVO],0),2),0)","v":0},{"$f":"IFERROR(INDEX(ListaDeAulas[],MATCH(SUMPRODUCT((ListaDeAulas[DIA]=HorárioDeAulas[[#Headers],[SEGUNDA-FEIRA]])*(ROUNDDOWN($B43,10)>=ROUNDDOWN(ListaDeAulas[HORA DE INÍCIO],10))*($B43<=ListaDeAulas[HORA DE FIM]),ListaDeAulas[EXCLUSIVO]),ListaDeAulas[EXCLUSIVO],0),2),0)","v":0},{"$f":"IFERROR(INDEX(ListaDeAulas[],MATCH(SUMPRODUCT((ListaDeAulas[DIA]=HorárioDeAulas[[#Headers],[TERÇA-FEIRA]])*(ROUNDDOWN($B43,10)>=ROUNDDOWN(ListaDeAulas[HORA DE INÍCIO],10))*($B43<=ListaDeAulas[HORA DE FIM]),ListaDeAulas[EXCLUSIVO]),ListaDeAulas[EXCLUSIVO],0),2),0)","v":0},{"$f":"IFERROR(INDEX(ListaDeAulas[],MATCH(SUMPRODUCT((ListaDeAulas[DIA]=HorárioDeAulas[[#Headers],[QUARTA-FEIRA]])*(ROUNDDOWN($B43,10)>=ROUNDDOWN(ListaDeAulas[HORA DE INÍCIO],10))*($B43<=ListaDeAulas[HORA DE FIM]),ListaDeAulas[EXCLUSIVO]),ListaDeAulas[EXCLUSIVO],0),2),0)","v":0},{"$f":"IFERROR(INDEX(ListaDeAulas[],MATCH(SUMPRODUCT((ListaDeAulas[DIA]=HorárioDeAulas[[#Headers],[QUINTA-FEIRA]])*(ROUNDDOWN($B43,10)>=ROUNDDOWN(ListaDeAulas[HORA DE INÍCIO],10))*($B43<=ListaDeAulas[HORA DE FIM]),ListaDeAulas[EXCLUSIVO]),ListaDeAulas[EXCLUSIVO],0),2),0)","v":0},{"$f":"IFERROR(INDEX(ListaDeAulas[],MATCH(SUMPRODUCT((ListaDeAulas[DIA]=HorárioDeAulas[[#Headers],[SEXTA-FEIRA]])*(ROUNDDOWN($B43,10)>=ROUNDDOWN(ListaDeAulas[HORA DE INÍCIO],10))*($B43<=ListaDeAulas[HORA DE FIM]),ListaDeAulas[EXCLUSIVO]),ListaDeAulas[EXCLUSIVO],0),2),0)","v":0},{"$f":"IFERROR(INDEX(ListaDeAulas[],MATCH(SUMPRODUCT((ListaDeAulas[DIA]=HorárioDeAulas[[#Headers],[SÁBADO]])*(ROUNDDOWN($B43,10)>=ROUNDDOWN(ListaDeAulas[HORA DE INÍCIO],10))*($B43<=ListaDeAulas[HORA DE FIM]),ListaDeAulas[EXCLUSIVO]),ListaDeAulas[EXCLUSIVO],0),2),0)","v":0}]
[null,"18:00:00",{"$f":"IFERROR(INDEX(ListaDeAulas[],MATCH(SUMPRODUCT((ListaDeAulas[DIA]=HorárioDeAulas[[#Headers],[DOMINGO]])*(ROUNDDOWN($B44,10)>=ROUNDDOWN(ListaDeAulas[HORA DE INÍCIO],10))*($B44<=ListaDeAulas[HORA DE FIM]),ListaDeAulas[EXCLUSIVO]),ListaDeAulas[EXCLUSIVO],0),2),0)","v":0},{"$f":"IFERROR(INDEX(ListaDeAulas[],MATCH(SUMPRODUCT((ListaDeAulas[DIA]=HorárioDeAulas[[#Headers],[SEGUNDA-FEIRA]])*(ROUNDDOWN($B44,10)>=ROUNDDOWN(ListaDeAulas[HORA DE INÍCIO],10))*($B44<=ListaDeAulas[HORA DE FIM]),ListaDeAulas[EXCLUSIVO]),ListaDeAulas[EXCLUSIVO],0),2),0)","v":0},{"$f":"IFERROR(INDEX(ListaDeAulas[],MATCH(SUMPRODUCT((ListaDeAulas[DIA]=HorárioDeAulas[[#Headers],[TERÇA-FEIRA]])*(ROUNDDOWN($B44,10)>=ROUNDDOWN(ListaDeAulas[HORA DE INÍCIO],10))*($B44<=ListaDeAulas[HORA DE FIM]),ListaDeAulas[EXCLUSIVO]),ListaDeAulas[EXCLUSIVO],0),2),0)","v":0},{"$f":"IFERROR(INDEX(ListaDeAulas[],MATCH(SUMPRODUCT((ListaDeAulas[DIA]=HorárioDeAulas[[#Headers],[QUARTA-FEIRA]])*(ROUNDDOWN($B44,10)>=ROUNDDOWN(ListaDeAulas[HORA DE INÍCIO],10))*($B44<=ListaDeAulas[HORA DE FIM]),ListaDeAulas[EXCLUSIVO]),ListaDeAulas[EXCLUSIVO],0),2),0)","v":0},{"$f":"IFERROR(INDEX(ListaDeAulas[],MATCH(SUMPRODUCT((ListaDeAulas[DIA]=HorárioDeAulas[[#Headers],[QUINTA-FEIRA]])*(ROUNDDOWN($B44,10)>=ROUNDDOWN(ListaDeAulas[HORA DE INÍCIO],10))*($B44<=ListaDeAulas[HORA DE FIM]),ListaDeAulas[EXCLUSIVO]),ListaDeAulas[EXCLUSIVO],0),2),0)","v":0},{"$f":"IFERROR(INDEX(ListaDeAulas[],MATCH(SUMPRODUCT((ListaDeAulas[DIA]=HorárioDeAulas[[#Headers],[SEXTA-FEIRA]])*(ROUNDDOWN($B44,10)>=ROUNDDOWN(ListaDeAulas[HORA DE INÍCIO],10))*($B44<=ListaDeAulas[HORA DE FIM]),ListaDeAulas[EXCLUSIVO]),ListaDeAulas[EXCLUSIVO],0),2),0)","v":0},{"$f":"IFERROR(INDEX(ListaDeAulas[],MATCH(SUMPRODUCT((ListaDeAulas[DIA]=HorárioDeAulas[[#Headers],[SÁBADO]])*(ROUNDDOWN($B44,10)>=ROUNDDOWN(ListaDeAulas[HORA DE INÍCIO],10))*($B44<=ListaDeAulas[HORA DE FIM]),ListaDeAulas[EXCLUSIVO]),ListaDeAulas[EXCLUSIVO],0),2),0)","v":0}]
[null,"18:15:00",{"$f":"IFERROR(INDEX(ListaDeAulas[],MATCH(SUMPRODUCT((ListaDeAulas[DIA]=HorárioDeAulas[[#Headers],[DOMINGO]])*(ROUNDDOWN($B45,10)>=ROUNDDOWN(ListaDeAulas[HORA DE INÍCIO],10))*($B45<=ListaDeAulas[HORA DE FIM]),ListaDeAulas[EXCLUSIVO]),ListaDeAulas[EXCLUSIVO],0),2),0)","v":0},{"$f":"IFERROR(INDEX(ListaDeAulas[],MATCH(SUMPRODUCT((ListaDeAulas[DIA]=HorárioDeAulas[[#Headers],[SEGUNDA-FEIRA]])*(ROUNDDOWN($B45,10)>=ROUNDDOWN(ListaDeAulas[HORA DE INÍCIO],10))*($B45<=ListaDeAulas[HORA DE FIM]),ListaDeAulas[EXCLUSIVO]),ListaDeAulas[EXCLUSIVO],0),2),0)","v":0},{"$f":"IFERROR(INDEX(ListaDeAulas[],MATCH(SUMPRODUCT((ListaDeAulas[DIA]=HorárioDeAulas[[#Headers],[TERÇA-FEIRA]])*(ROUNDDOWN($B45,10)>=ROUNDDOWN(ListaDeAulas[HORA DE INÍCIO],10))*($B45<=ListaDeAulas[HORA DE FIM]),ListaDeAulas[EXCLUSIVO]),ListaDeAulas[EXCLUSIVO],0),2),0)","v":0},{"$f":"IFERROR(INDEX(ListaDeAulas[],MATCH(SUMPRODUCT((ListaDeAulas[DIA]=HorárioDeAulas[[#Headers],[QUARTA-FEIRA]])*(ROUNDDOWN($B45,10)>=ROUNDDOWN(ListaDeAulas[HORA DE INÍCIO],10))*($B45<=ListaDeAulas[HORA DE FIM]),ListaDeAulas[EXCLUSIVO]),ListaDeAulas[EXCLUSIVO],0),2),0)","v":0},{"$f":"IFERROR(INDEX(ListaDeAulas[],MATCH(SUMPRODUCT((ListaDeAulas[DIA]=HorárioDeAulas[[#Headers],[QUINTA-FEIRA]])*(ROUNDDOWN($B45,10)>=ROUNDDOWN(ListaDeAulas[HORA DE INÍCIO],10))*($B45<=ListaDeAulas[HORA DE FIM]),ListaDeAulas[EXCLUSIVO]),ListaDeAulas[EXCLUSIVO],0),2),0)","v":0},{"$f":"IFERROR(INDEX(ListaDeAulas[],MATCH(SUMPRODUCT((ListaDeAulas[DIA]=HorárioDeAulas[[#Headers],[SEXTA-FEIRA]])*(ROUNDDOWN($B45,10)>=ROUNDDOWN(ListaDeAulas[HORA DE INÍCIO],10))*($B45<=ListaDeAulas[HORA DE FIM]),ListaDeAulas[EXCLUSIVO]),ListaDeAulas[EXCLUSIVO],0),2),0)","v":0},{"$f":"IFERROR(INDEX(ListaDeAulas[],MATCH(SUMPRODUCT((ListaDeAulas[DIA]=HorárioDeAulas[[#Headers],[SÁBADO]])*(ROUNDDOWN($B45,10)>=ROUNDDOWN(ListaDeAulas[HORA DE INÍCIO],10))*($B45<=ListaDeAulas[HORA DE FIM]),ListaDeAulas[EXCLUSIVO]),ListaDeAulas[EXCLUSIVO],0),2),0)","v":0}]
[null,"18:30:00",{"$f":"IFERROR(INDEX(ListaDeAulas[],MATCH(SUMPRODUCT((ListaDeAulas[DIA]=HorárioDeAulas[[#Headers],[DOMINGO]])*(ROUNDDOWN($B46,10)>=ROUNDDOWN(ListaDeAulas[HORA DE INÍCIO],10))*($B46<=ListaDeAulas[HORA DE FIM]),ListaDeAulas[EXCLUSIVO]),ListaDeAulas[EXCLUSIVO],0),2),0)","v":0},{"$f":"IFERROR(INDEX(ListaDeAulas[],MATCH(SUMPRODUCT((ListaDeAulas[DIA]=HorárioDeAulas[[#Headers],[SEGUNDA-FEIRA]])*(ROUNDDOWN($B46,10)>=ROUNDDOWN(ListaDeAulas[HORA DE INÍCIO],10))*($B46<=ListaDeAulas[HORA DE FIM]),ListaDeAulas[EXCLUSIVO]),ListaDeAulas[EXCLUSIVO],0),2),0)","v":0},{"$f":"IFERROR(INDEX(ListaDeAulas[],MATCH(SUMPRODUCT((ListaDeAulas[DIA]=HorárioDeAulas[[#Headers],[TERÇA-FEIRA]])*(ROUNDDOWN($B46,10)>=ROUNDDOWN(ListaDeAulas[HORA DE INÍCIO],10))*($B46<=ListaDeAulas[HORA DE FIM]),ListaDeAulas[EXCLUSIVO]),ListaDeAulas[EXCLUSIVO],0),2),0)","v":0},{"$f":"IFERROR(INDEX(ListaDeAulas[],MATCH(SUMPRODUCT((ListaDeAulas[DIA]=HorárioDeAulas[[#Headers],[QUARTA-FEIRA]])*(ROUNDDOWN($B46,10)>=ROUNDDOWN(ListaDeAulas[HORA DE INÍCIO],10))*($B46<=ListaDeAulas[HORA DE FIM]),ListaDeAulas[EXCLUSIVO]),ListaDeAulas[EXCLUSIVO],0),2),0)","v":0},{"$f":"IFERROR(INDEX(ListaDeAulas[],MATCH(SUMPRODUCT((ListaDeAulas[DIA]=HorárioDeAulas[[#Headers],[QUINTA-FEIRA]])*(ROUNDDOWN($B46,10)>=ROUNDDOWN(ListaDeAulas[HORA DE INÍCIO],10))*($B46<=ListaDeAulas[HORA DE FIM]),ListaDeAulas[EXCLUSIVO]),ListaDeAulas[EXCLUSIVO],0),2),0)","v":0},{"$f":"IFERROR(INDEX(ListaDeAulas[],MATCH(SUMPRODUCT((ListaDeAulas[DIA]=HorárioDeAulas[[#Headers],[SEXTA-FEIRA]])*(ROUNDDOWN($B46,10)>=ROUNDDOWN(ListaDeAulas[HORA DE INÍCIO],10))*($B46<=ListaDeAulas[HORA DE FIM]),ListaDeAulas[EXCLUSIVO]),ListaDeAulas[EXCLUSIVO],0),2),0)","v":0},{"$f":"IFERROR(INDEX(ListaDeAulas[],MATCH(SUMPRODUCT((ListaDeAulas[DIA]=HorárioDeAulas[[#Headers],[SÁBADO]])*(ROUNDDOWN($B46,10)>=ROUNDDOWN(ListaDeAulas[HORA DE INÍCIO],10))*($B46<=ListaDeAulas[HORA DE FIM]),ListaDeAulas[EXCLUSIVO]),ListaDeAulas[EXCLUSIVO],0),2),0)","v":0}]
[null,"18:45:00",{"$f":"IFERROR(INDEX(ListaDeAulas[],MATCH(SUMPRODUCT((ListaDeAulas[DIA]=HorárioDeAulas[[#Headers],[DOMINGO]])*(ROUNDDOWN($B47,10)>=ROUNDDOWN(ListaDeAulas[HORA DE INÍCIO],10))*($B47<=ListaDeAulas[HORA DE FIM]),ListaDeAulas[EXCLUSIVO]),ListaDeAulas[EXCLUSIVO],0),2),0)","v":0},{"$f":"IFERROR(INDEX(ListaDeAulas[],MATCH(SUMPRODUCT((ListaDeAulas[DIA]=HorárioDeAulas[[#Headers],[SEGUNDA-FEIRA]])*(ROUNDDOWN($B47,10)>=ROUNDDOWN(ListaDeAulas[HORA DE INÍCIO],10))*($B47<=ListaDeAulas[HORA DE FIM]),ListaDeAulas[EXCLUSIVO]),ListaDeAulas[EXCLUSIVO],0),2),0)","v":0},{"$f":"IFERROR(INDEX(ListaDeAulas[],MATCH(SUMPRODUCT((ListaDeAulas[DIA]=HorárioDeAulas[[#Headers],[TERÇA-FEIRA]])*(ROUNDDOWN($B47,10)>=ROUNDDOWN(ListaDeAulas[HORA DE INÍCIO],10))*($B47<=ListaDeAulas[HORA DE FIM]),ListaDeAulas[EXCLUSIVO]),ListaDeAulas[EXCLUSIVO],0),2),0)","v":0},{"$f":"IFERROR(INDEX(ListaDeAulas[],MATCH(SUMPRODUCT((ListaDeAulas[DIA]=HorárioDeAulas[[#Headers],[QUARTA-FEIRA]])*(ROUNDDOWN($B47,10)>=ROUNDDOWN(ListaDeAulas[HORA DE INÍCIO],10))*($B47<=ListaDeAulas[HORA DE FIM]),ListaDeAulas[EXCLUSIVO]),ListaDeAulas[EXCLUSIVO],0),2),0)","v":0},{"$f":"IFERROR(INDEX(ListaDeAulas[],MATCH(SUMPRODUCT((ListaDeAulas[DIA]=HorárioDeAulas[[#Headers],[QUINTA-FEIRA]])*(ROUNDDOWN($B47,10)>=ROUNDDOWN(ListaDeAulas[HORA DE INÍCIO],10))*($B47<=ListaDeAulas[HORA DE FIM]),ListaDeAulas[EXCLUSIVO]),ListaDeAulas[EXCLUSIVO],0),2),0)","v":0},{"$f":"IFERROR(INDEX(ListaDeAulas[],MATCH(SUMPRODUCT((ListaDeAulas[DIA]=HorárioDeAulas[[#Headers],[SEXTA-FEIRA]])*(ROUNDDOWN($B47,10)>=ROUNDDOWN(ListaDeAulas[HORA DE INÍCIO],10))*($B47<=ListaDeAulas[HORA DE FIM]),ListaDeAulas[EXCLUSIVO]),ListaDeAulas[EXCLUSIVO],0),2),0)","v":0},{"$f":"IFERROR(INDEX(ListaDeAulas[],MATCH(SUMPRODUCT((ListaDeAulas[DIA]=HorárioDeAulas[[#Headers],[SÁBADO]])*(ROUNDDOWN($B47,10)>=ROUNDDOWN(ListaDeAulas[HORA DE INÍCIO],10))*($B47<=ListaDeAulas[HORA DE FIM]),ListaDeAulas[EXCLUSIVO]),ListaDeAulas[EXCLUSIVO],0),2),0)","v":0}]
[null,"19:00:00",{"$f":"IFERROR(INDEX(ListaDeAulas[],MATCH(SUMPRODUCT((ListaDeAulas[DIA]=HorárioDeAulas[[#Headers],[DOMINGO]])*(ROUNDDOWN($B48,10)>=ROUNDDOWN(ListaDeAulas[HORA DE INÍCIO],10))*($B48<=ListaDeAulas[HORA DE FIM]),ListaDeAulas[EXCLUSIVO]),ListaDeAulas[EXCLUSIVO],0),2),0)","v":0},{"$f":"IFERROR(INDEX(ListaDeAulas[],MATCH(SUMPRODUCT((ListaDeAulas[DIA]=HorárioDeAulas[[#Headers],[SEGUNDA-FEIRA]])*(ROUNDDOWN($B48,10)>=ROUNDDOWN(ListaDeAulas[HORA DE INÍCIO],10))*($B48<=ListaDeAulas[HORA DE FIM]),ListaDeAulas[EXCLUSIVO]),ListaDeAulas[EXCLUSIVO],0),2),0)","v":0},{"$f":"IFERROR(INDEX(ListaDeAulas[],MATCH(SUMPRODUCT((ListaDeAulas[DIA]=HorárioDeAulas[[#Headers],[TERÇA-FEIRA]])*(ROUNDDOWN($B48,10)>=ROUNDDOWN(ListaDeAulas[HORA DE INÍCIO],10))*($B48<=ListaDeAulas[HORA DE FIM]),ListaDeAulas[EXCLUSIVO]),ListaDeAulas[EXCLUSIVO],0),2),0)","v":0},{"$f":"IFERROR(INDEX(ListaDeAulas[],MATCH(SUMPRODUCT((ListaDeAulas[DIA]=HorárioDeAulas[[#Headers],[QUARTA-FEIRA]])*(ROUNDDOWN($B48,10)>=ROUNDDOWN(ListaDeAulas[HORA DE INÍCIO],10))*($B48<=ListaDeAulas[HORA DE FIM]),ListaDeAulas[EXCLUSIVO]),ListaDeAulas[EXCLUSIVO],0),2),0)","v":0},{"$f":"IFERROR(INDEX(ListaDeAulas[],MATCH(SUMPRODUCT((ListaDeAulas[DIA]=HorárioDeAulas[[#Headers],[QUINTA-FEIRA]])*(ROUNDDOWN($B48,10)>=ROUNDDOWN(ListaDeAulas[HORA DE INÍCIO],10))*($B48<=ListaDeAulas[HORA DE FIM]),ListaDeAulas[EXCLUSIVO]),ListaDeAulas[EXCLUSIVO],0),2),0)","v":0},{"$f":"IFERROR(INDEX(ListaDeAulas[],MATCH(SUMPRODUCT((ListaDeAulas[DIA]=HorárioDeAulas[[#Headers],[SEXTA-FEIRA]])*(ROUNDDOWN($B48,10)>=ROUNDDOWN(ListaDeAulas[HORA DE INÍCIO],10))*($B48<=ListaDeAulas[HORA DE FIM]),ListaDeAulas[EXCLUSIVO]),ListaDeAulas[EXCLUSIVO],0),2),0)","v":0},{"$f":"IFERROR(INDEX(ListaDeAulas[],MATCH(SUMPRODUCT((ListaDeAulas[DIA]=HorárioDeAulas[[#Headers],[SÁBADO]])*(ROUNDDOWN($B48,10)>=ROUNDDOWN(ListaDeAulas[HORA DE INÍCIO],10))*($B48<=ListaDeAulas[HORA DE FIM]),ListaDeAulas[EXCLUSIVO]),ListaDeAulas[EXCLUSIVO],0),2),0)","v":0}]
[null,"19:15:00",{"$f":"IFERROR(INDEX(ListaDeAulas[],MATCH(SUMPRODUCT((ListaDeAulas[DIA]=HorárioDeAulas[[#Headers],[DOMINGO]])*(ROUNDDOWN($B49,10)>=ROUNDDOWN(ListaDeAulas[HORA DE INÍCIO],10))*($B49<=ListaDeAulas[HORA DE FIM]),ListaDeAulas[EXCLUSIVO]),ListaDeAulas[EXCLUSIVO],0),2),0)","v":0},{"$f":"IFERROR(INDEX(ListaDeAulas[],MATCH(SUMPRODUCT((ListaDeAulas[DIA]=HorárioDeAulas[[#Headers],[SEGUNDA-FEIRA]])*(ROUNDDOWN($B49,10)>=ROUNDDOWN(ListaDeAulas[HORA DE INÍCIO],10))*($B49<=ListaDeAulas[HORA DE FIM]),ListaDeAulas[EXCLUSIVO]),ListaDeAulas[EXCLUSIVO],0),2),0)","v":0},{"$f":"IFERROR(INDEX(ListaDeAulas[],MATCH(SUMPRODUCT((ListaDeAulas[DIA]=HorárioDeAulas[[#Headers],[TERÇA-FEIRA]])*(ROUNDDOWN($B49,10)>=ROUNDDOWN(ListaDeAulas[HORA DE INÍCIO],10))*($B49<=ListaDeAulas[HORA DE FIM]),ListaDeAulas[EXCLUSIVO]),ListaDeAulas[EXCLUSIVO],0),2),0)","v":0},{"$f":"IFERROR(INDEX(ListaDeAulas[],MATCH(SUMPRODUCT((ListaDeAulas[DIA]=HorárioDeAulas[[#Headers],[QUARTA-FEIRA]])*(ROUNDDOWN($B49,10)>=ROUNDDOWN(ListaDeAulas[HORA DE INÍCIO],10))*($B49<=ListaDeAulas[HORA DE FIM]),ListaDeAulas[EXCLUSIVO]),ListaDeAulas[EXCLUSIVO],0),2),0)","v":0},{"$f":"IFERROR(INDEX(ListaDeAulas[],MATCH(SUMPRODUCT((ListaDeAulas[DIA]=HorárioDeAulas[[#Headers],[QUINTA-FEIRA]])*(ROUNDDOWN($B49,10)>=ROUNDDOWN(ListaDeAulas[HORA DE INÍCIO],10))*($B49<=ListaDeAulas[HORA DE FIM]),ListaDeAulas[EXCLUSIVO]),ListaDeAulas[EXCLUSIVO],0),2),0)","v":0},{"$f":"IFERROR(INDEX(ListaDeAulas[],MATCH(SUMPRODUCT((ListaDeAulas[DIA]=HorárioDeAulas[[#Headers],[SEXTA-FEIRA]])*(ROUNDDOWN($B49,10)>=ROUNDDOWN(ListaDeAulas[HORA DE INÍCIO],10))*($B49<=ListaDeAulas[HORA DE FIM]),ListaDeAulas[EXCLUSIVO]),ListaDeAulas[EXCLUSIVO],0),2),0)","v":0},{"$f":"IFERROR(INDEX(ListaDeAulas[],MATCH(SUMPRODUCT((ListaDeAulas[DIA]=HorárioDeAulas[[#Headers],[SÁBADO]])*(ROUNDDOWN($B49,10)>=ROUNDDOWN(ListaDeAulas[HORA DE INÍCIO],10))*($B49<=ListaDeAulas[HORA DE FIM]),ListaDeAulas[EXCLUSIVO]),ListaDeAulas[EXCLUSIVO],0),2),0)","v":0}]
[null,"19:30:00",{"$f":"IFERROR(INDEX(ListaDeAulas[],MATCH(SUMPRODUCT((ListaDeAulas[DIA]=HorárioDeAulas[[#Headers],[DOMINGO]])*(ROUNDDOWN($B50,10)>=ROUNDDOWN(ListaDeAulas[HORA DE INÍCIO],10))*($B50<=ListaDeAulas[HORA DE FIM]),ListaDeAulas[EXCLUSIVO]),ListaDeAulas[EXCLUSIVO],0),2),0)","v":0},{"$f":"IFERROR(INDEX(ListaDeAulas[],MATCH(SUMPRODUCT((ListaDeAulas[DIA]=HorárioDeAulas[[#Headers],[SEGUNDA-FEIRA]])*(ROUNDDOWN($B50,10)>=ROUNDDOWN(ListaDeAulas[HORA DE INÍCIO],10))*($B50<=ListaDeAulas[HORA DE FIM]),ListaDeAulas[EXCLUSIVO]),ListaDeAulas[EXCLUSIVO],0),2),0)","v":0},{"$f":"IFERROR(INDEX(ListaDeAulas[],MATCH(SUMPRODUCT((ListaDeAulas[DIA]=HorárioDeAulas[[#Headers],[TERÇA-FEIRA]])*(ROUNDDOWN($B50,10)>=ROUNDDOWN(ListaDeAulas[HORA DE INÍCIO],10))*($B50<=ListaDeAulas[HORA DE FIM]),ListaDeAulas[EXCLUSIVO]),ListaDeAulas[EXCLUSIVO],0),2),0)","v":0},{"$f":"IFERROR(INDEX(ListaDeAulas[],MATCH(SUMPRODUCT((ListaDeAulas[DIA]=HorárioDeAulas[[#Headers],[QUARTA-FEIRA]])*(ROUNDDOWN($B50,10)>=ROUNDDOWN(ListaDeAulas[HORA DE INÍCIO],10))*($B50<=ListaDeAulas[HORA DE FIM]),ListaDeAulas[EXCLUSIVO]),ListaDeAulas[EXCLUSIVO],0),2),0)","v":0},{"$f":"IFERROR(INDEX(ListaDeAulas[],MATCH(SUMPRODUCT((ListaDeAulas[DIA]=HorárioDeAulas[[#Headers],[QUINTA-FEIRA]])*(ROUNDDOWN($B50,10)>=ROUNDDOWN(ListaDeAulas[HORA DE INÍCIO],10))*($B50<=ListaDeAulas[HORA DE FIM]),ListaDeAulas[EXCLUSIVO]),ListaDeAulas[EXCLUSIVO],0),2),0)","v":0},{"$f":"IFERROR(INDEX(ListaDeAulas[],MATCH(SUMPRODUCT((ListaDeAulas[DIA]=HorárioDeAulas[[#Headers],[SEXTA-FEIRA]])*(ROUNDDOWN($B50,10)>=ROUNDDOWN(ListaDeAulas[HORA DE INÍCIO],10))*($B50<=ListaDeAulas[HORA DE FIM]),ListaDeAulas[EXCLUSIVO]),ListaDeAulas[EXCLUSIVO],0),2),0)","v":0},{"$f":"IFERROR(INDEX(ListaDeAulas[],MATCH(SUMPRODUCT((ListaDeAulas[DIA]=HorárioDeAulas[[#Headers],[SÁBADO]])*(ROUNDDOWN($B50,10)>=ROUNDDOWN(ListaDeAulas[HORA DE INÍCIO],10))*($B50<=ListaDeAulas[HORA DE FIM]),ListaDeAulas[EXCLUSIVO]),ListaDeAulas[EXCLUSIVO],0),2),0)","v":0}]
[null,"19:45:00",{"$f":"IFERROR(INDEX(ListaDeAulas[],MATCH(SUMPRODUCT((ListaDeAulas[DIA]=HorárioDeAulas[[#Headers],[DOMINGO]])*(ROUNDDOWN($B51,10)>=ROUNDDOWN(ListaDeAulas[HORA DE INÍCIO],10))*($B51<=ListaDeAulas[HORA DE FIM]),ListaDeAulas[EXCLUSIVO]),ListaDeAulas[EXCLUSIVO],0),2),0)","v":0},{"$f":"IFERROR(INDEX(ListaDeAulas[],MATCH(SUMPRODUCT((ListaDeAulas[DIA]=HorárioDeAulas[[#Headers],[SEGUNDA-FEIRA]])*(ROUNDDOWN($B51,10)>=ROUNDDOWN(ListaDeAulas[HORA DE INÍCIO],10))*($B51<=ListaDeAulas[HORA DE FIM]),ListaDeAulas[EXCLUSIVO]),ListaDeAulas[EXCLUSIVO],0),2),0)","v":0},{"$f":"IFERROR(INDEX(ListaDeAulas[],MATCH(SUMPRODUCT((ListaDeAulas[DIA]=HorárioDeAulas[[#Headers],[TERÇA-FEIRA]])*(ROUNDDOWN($B51,10)>=ROUNDDOWN(ListaDeAulas[HORA DE INÍCIO],10))*($B51<=ListaDeAulas[HORA DE FIM]),ListaDeAulas[EXCLUSIVO]),ListaDeAulas[EXCLUSIVO],0),2),0)","v":0},{"$f":"IFERROR(INDEX(ListaDeAulas[],MATCH(SUMPRODUCT((ListaDeAulas[DIA]=HorárioDeAulas[[#Headers],[QUARTA-FEIRA]])*(ROUNDDOWN($B51,10)>=ROUNDDOWN(ListaDeAulas[HORA DE INÍCIO],10))*($B51<=ListaDeAulas[HORA DE FIM]),ListaDeAulas[EXCLUSIVO]),ListaDeAulas[EXCLUSIVO],0),2),0)","v":0},{"$f":"IFERROR(INDEX(ListaDeAulas[],MATCH(SUMPRODUCT((ListaDeAulas[DIA]=HorárioDeAulas[[#Headers],[QUINTA-FEIRA]])*(ROUNDDOWN($B51,10)>=ROUNDDOWN(ListaDeAulas[HORA DE INÍCIO],10))*($B51<=ListaDeAulas[HORA DE FIM]),ListaDeAulas[EXCLUSIVO]),ListaDeAulas[EXCLUSIVO],0),2),0)","v":0},{"$f":"IFERROR(INDEX(ListaDeAulas[],MATCH(SUMPRODUCT((ListaDeAulas[DIA]=HorárioDeAulas[[#Headers],[SEXTA-FEIRA]])*(ROUNDDOWN($B51,10)>=ROUNDDOWN(ListaDeAulas[HORA DE INÍCIO],10))*($B51<=ListaDeAulas[HORA DE FIM]),ListaDeAulas[EXCLUSIVO]),ListaDeAulas[EXCLUSIVO],0),2),0)","v":0},{"$f":"IFERROR(INDEX(ListaDeAulas[],MATCH(SUMPRODUCT((ListaDeAulas[DIA]=HorárioDeAulas[[#Headers],[SÁBADO]])*(ROUNDDOWN($B51,10)>=ROUNDDOWN(ListaDeAulas[HORA DE INÍCIO],10))*($B51<=ListaDeAulas[HORA DE FIM]),ListaDeAulas[EXCLUSIVO]),ListaDeAulas[EXCLUSIVO],0),2),0)","v":0}]
[null,"20:00:00",{"$f":"IFERROR(INDEX(ListaDeAulas[],MATCH(SUMPRODUCT((ListaDeAulas[DIA]=HorárioDeAulas[[#Headers],[DOMINGO]])*(ROUNDDOWN($B52,10)>=ROUNDDOWN(ListaDeAulas[HORA DE INÍCIO],10))*($B52<=ListaDeAulas[HORA DE FIM]),ListaDeAulas[EXCLUSIVO]),ListaDeAulas[EXCLUSIVO],0),2),0)","v":0},{"$f":"IFERROR(INDEX(ListaDeAulas[],MATCH(SUMPRODUCT((ListaDeAulas[DIA]=HorárioDeAulas[[#Headers],[SEGUNDA-FEIRA]])*(ROUNDDOWN($B52,10)>=ROUNDDOWN(ListaDeAulas[HORA DE INÍCIO],10))*($B52<=ListaDeAulas[HORA DE FIM]),ListaDeAulas[EXCLUSIVO]),ListaDeAulas[EXCLUSIVO],0),2),0)","v":0},{"$f":"IFERROR(INDEX(ListaDeAulas[],MATCH(SUMPRODUCT((ListaDeAulas[DIA]=HorárioDeAulas[[#Headers],[TERÇA-FEIRA]])*(ROUNDDOWN($B52,10)>=ROUNDDOWN(ListaDeAulas[HORA DE INÍCIO],10))*($B52<=ListaDeAulas[HORA DE FIM]),ListaDeAulas[EXCLUSIVO]),ListaDeAulas[EXCLUSIVO],0),2),0)","v":0},{"$f":"IFERROR(INDEX(ListaDeAulas[],MATCH(SUMPRODUCT((ListaDeAulas[DIA]=HorárioDeAulas[[#Headers],[QUARTA-FEIRA]])*(ROUNDDOWN($B52,10)>=ROUNDDOWN(ListaDeAulas[HORA DE INÍCIO],10))*($B52<=ListaDeAulas[HORA DE FIM]),ListaDeAulas[EXCLUSIVO]),ListaDeAulas[EXCLUSIVO],0),2),0)","v":0},{"$f":"IFERROR(INDEX(ListaDeAulas[],MATCH(SUMPRODUCT((ListaDeAulas[DIA]=HorárioDeAulas[[#Headers],[QUINTA-FEIRA]])*(ROUNDDOWN($B52,10)>=ROUNDDOWN(ListaDeAulas[HORA DE INÍCIO],10))*($B52<=ListaDeAulas[HORA DE FIM]),ListaDeAulas[EXCLUSIVO]),ListaDeAulas[EXCLUSIVO],0),2),0)","v":0},{"$f":"IFERROR(INDEX(ListaDeAulas[],MATCH(SUMPRODUCT((ListaDeAulas[DIA]=HorárioDeAulas[[#Headers],[SEXTA-FEIRA]])*(ROUNDDOWN($B52,10)>=ROUNDDOWN(ListaDeAulas[HORA DE INÍCIO],10))*($B52<=ListaDeAulas[HORA DE FIM]),ListaDeAulas[EXCLUSIVO]),ListaDeAulas[EXCLUSIVO],0),2),0)","v":0},{"$f":"IFERROR(INDEX(ListaDeAulas[],MATCH(SUMPRODUCT((ListaDeAulas[DIA]=HorárioDeAulas[[#Headers],[SÁBADO]])*(ROUNDDOWN($B52,10)>=ROUNDDOWN(ListaDeAulas[HORA DE INÍCIO],10))*($B52<=ListaDeAulas[HORA DE FIM]),ListaDeAulas[EXCLUSIVO]),ListaDeAulas[EXCLUSIVO],0),2),0)","v":0}]
[null,"20:15:00",{"$f":"IFERROR(INDEX(ListaDeAulas[],MATCH(SUMPRODUCT((ListaDeAulas[DIA]=HorárioDeAulas[[#Headers],[DOMINGO]])*(ROUNDDOWN($B53,10)>=ROUNDDOWN(ListaDeAulas[HORA DE INÍCIO],10))*($B53<=ListaDeAulas[HORA DE FIM]),ListaDeAulas[EXCLUSIVO]),ListaDeAulas[EXCLUSIVO],0),2),0)","v":0},{"$f":"IFERROR(INDEX(ListaDeAulas[],MATCH(SUMPRODUCT((ListaDeAulas[DIA]=HorárioDeAulas[[#Headers],[SEGUNDA-FEIRA]])*(ROUNDDOWN($B53,10)>=ROUNDDOWN(ListaDeAulas[HORA DE INÍCIO],10))*($B53<=ListaDeAulas[HORA DE FIM]),ListaDeAulas[EXCLUSIVO]),ListaDeAulas[EXCLUSIVO],0),2),0)","v":0},{"$f":"IFERROR(INDEX(ListaDeAulas[],MATCH(SUMPRODUCT((ListaDeAulas[DIA]=HorárioDeAulas[[#Headers],[TERÇA-FEIRA]])*(ROUNDDOWN($B53,10)>=ROUNDDOWN(ListaDeAulas[HORA DE INÍCIO],10))*($B53<=ListaDeAulas[HORA DE FIM]),ListaDeAulas[EXCLUSIVO]),ListaDeAulas[EXCLUSIVO],0),2),0)","v":0},{"$f":"IFERROR(INDEX(ListaDeAulas[],MATCH(SUMPRODUCT((ListaDeAulas[DIA]=HorárioDeAulas[[#Headers],[QUARTA-FEIRA]])*(ROUNDDOWN($B53,10)>=ROUNDDOWN(ListaDeAulas[HORA DE INÍCIO],10))*($B53<=ListaDeAulas[HORA DE FIM]),ListaDeAulas[EXCLUSIVO]),ListaDeAulas[EXCLUSIVO],0),2),0)","v":0},{"$f":"IFERROR(INDEX(ListaDeAulas[],MATCH(SUMPRODUCT((ListaDeAulas[DIA]=HorárioDeAulas[[#Headers],[QUINTA-FEIRA]])*(ROUNDDOWN($B53,10)>=ROUNDDOWN(ListaDeAulas[HORA DE INÍCIO],10))*($B53<=ListaDeAulas[HORA DE FIM]),ListaDeAulas[EXCLUSIVO]),ListaDeAulas[EXCLUSIVO],0),2),0)","v":0},{"$f":"IFERROR(INDEX(ListaDeAulas[],MATCH(SUMPRODUCT((ListaDeAulas[DIA]=HorárioDeAulas[[#Headers],[SEXTA-FEIRA]])*(ROUNDDOWN($B53,10)>=ROUNDDOWN(ListaDeAulas[HORA DE INÍCIO],10))*($B53<=ListaDeAulas[HORA DE FIM]),ListaDeAulas[EXCLUSIVO]),ListaDeAulas[EXCLUSIVO],0),2),0)","v":0},{"$f":"IFERROR(INDEX(ListaDeAulas[],MATCH(SUMPRODUCT((ListaDeAulas[DIA]=HorárioDeAulas[[#Headers],[SÁBADO]])*(ROUNDDOWN($B53,10)>=ROUNDDOWN(ListaDeAulas[HORA DE INÍCIO],10))*($B53<=ListaDeAulas[HORA DE FIM]),ListaDeAulas[EXCLUSIVO]),ListaDeAulas[EXCLUSIVO],0),2),0)","v":0}]
[null,"20:30:00",{"$f":"IFERROR(INDEX(ListaDeAulas[],MATCH(SUMPRODUCT((ListaDeAulas[DIA]=HorárioDeAulas[[#Headers],[DOMINGO]])*(ROUNDDOWN($B54,10)>=ROUNDDOWN(ListaDeAulas[HORA DE INÍCIO],10))*($B54<=ListaDeAulas[HORA DE FIM]),ListaDeAulas[EXCLUSIVO]),ListaDeAulas[EXCLUSIVO],0),2),0)","v":0},{"$f":"IFERROR(INDEX(ListaDeAulas[],MATCH(SUMPRODUCT((ListaDeAulas[DIA]=HorárioDeAulas[[#Headers],[SEGUNDA-FEIRA]])*(ROUNDDOWN($B54,10)>=ROUNDDOWN(ListaDeAulas[HORA DE INÍCIO],10))*($B54<=ListaDeAulas[HORA DE FIM]),ListaDeAulas[EXCLUSIVO]),ListaDeAulas[EXCLUSIVO],0),2),0)","v":0},{"$f":"IFERROR(INDEX(ListaDeAulas[],MATCH(SUMPRODUCT((ListaDeAulas[DIA]=HorárioDeAulas[[#Headers],[TERÇA-FEIRA]])*(ROUNDDOWN($B54,10)>=ROUNDDOWN(ListaDeAulas[HORA DE INÍCIO],10))*($B54<=ListaDeAulas[HORA DE FIM]),ListaDeAulas[EXCLUSIVO]),ListaDeAulas[EXCLUSIVO],0),2),0)","v":0},{"$f":"IFERROR(INDEX(ListaDeAulas[],MATCH(SUMPRODUCT((ListaDeAulas[DIA]=HorárioDeAulas[[#Headers],[QUARTA-FEIRA]])*(ROUNDDOWN($B54,10)>=ROUNDDOWN(ListaDeAulas[HORA DE INÍCIO],10))*($B54<=ListaDeAulas[HORA DE FIM]),ListaDeAulas[EXCLUSIVO]),ListaDeAulas[EXCLUSIVO],0),2),0)","v":0},{"$f":"IFERROR(INDEX(ListaDeAulas[],MATCH(SUMPRODUCT((ListaDeAulas[DIA]=HorárioDeAulas[[#Headers],[QUINTA-FEIRA]])*(ROUNDDOWN($B54,10)>=ROUNDDOWN(ListaDeAulas[HORA DE INÍCIO],10))*($B54<=ListaDeAulas[HORA DE FIM]),ListaDeAulas[EXCLUSIVO]),ListaDeAulas[EXCLUSIVO],0),2),0)","v":0},{"$f":"IFERROR(INDEX(ListaDeAulas[],MATCH(SUMPRODUCT((ListaDeAulas[DIA]=HorárioDeAulas[[#Headers],[SEXTA-FEIRA]])*(ROUNDDOWN($B54,10)>=ROUNDDOWN(ListaDeAulas[HORA DE INÍCIO],10))*($B54<=ListaDeAulas[HORA DE FIM]),ListaDeAulas[EXCLUSIVO]),ListaDeAulas[EXCLUSIVO],0),2),0)","v":0},{"$f":"IFERROR(INDEX(ListaDeAulas[],MATCH(SUMPRODUCT((ListaDeAulas[DIA]=HorárioDeAulas[[#Headers],[SÁBADO]])*(ROUNDDOWN($B54,10)>=ROUNDDOWN(ListaDeAulas[HORA DE INÍCIO],10))*($B54<=ListaDeAulas[HORA DE FIM]),ListaDeAulas[EXCLUSIVO]),ListaDeAulas[EXCLUSIVO],0),2),0)","v":0}]
[null,{"$f":"B54+Incremento","v":"20:45:00"},{"$f":"IFERROR(INDEX(ListaDeAulas[],MATCH(SUMPRODUCT((ListaDeAulas[DIA]=HorárioDeAulas[[#Headers],[DOMINGO]])*(ROUNDDOWN($B55,10)>=ROUNDDOWN(ListaDeAulas[HORA DE INÍCIO],10))*($B55<=ListaDeAulas[HORA DE FIM]),ListaDeAulas[EXCLUSIVO]),ListaDeAulas[EXCLUSIVO],0),2),0)","v":0},{"$f":"IFERROR(INDEX(ListaDeAulas[],MATCH(SUMPRODUCT((ListaDeAulas[DIA]=HorárioDeAulas[[#Headers],[SEGUNDA-FEIRA]])*(ROUNDDOWN($B55,10)>=ROUNDDOWN(ListaDeAulas[HORA DE INÍCIO],10))*($B55<=ListaDeAulas[HORA DE FIM]),ListaDeAulas[EXCLUSIVO]),ListaDeAulas[EXCLUSIVO],0),2),0)","v":0},{"$f":"IFERROR(INDEX(ListaDeAulas[],MATCH(SUMPRODUCT((ListaDeAulas[DIA]=HorárioDeAulas[[#Headers],[TERÇA-FEIRA]])*(ROUNDDOWN($B55,10)>=ROUNDDOWN(ListaDeAulas[HORA DE INÍCIO],10))*($B55<=ListaDeAulas[HORA DE FIM]),ListaDeAulas[EXCLUSIVO]),ListaDeAulas[EXCLUSIVO],0),2),0)","v":0},{"$f":"IFERROR(INDEX(ListaDeAulas[],MATCH(SUMPRODUCT((ListaDeAulas[DIA]=HorárioDeAulas[[#Headers],[QUARTA-FEIRA]])*(ROUNDDOWN($B55,10)>=ROUNDDOWN(ListaDeAulas[HORA DE INÍCIO],10))*($B55<=ListaDeAulas[HORA DE FIM]),ListaDeAulas[EXCLUSIVO]),ListaDeAulas[EXCLUSIVO],0),2),0)","v":0},{"$f":"IFERROR(INDEX(ListaDeAulas[],MATCH(SUMPRODUCT((ListaDeAulas[DIA]=HorárioDeAulas[[#Headers],[QUINTA-FEIRA]])*(ROUNDDOWN($B55,10)>=ROUNDDOWN(ListaDeAulas[HORA DE INÍCIO],10))*($B55<=ListaDeAulas[HORA DE FIM]),ListaDeAulas[EXCLUSIVO]),ListaDeAulas[EXCLUSIVO],0),2),0)","v":0},{"$f":"IFERROR(INDEX(ListaDeAulas[],MATCH(SUMPRODUCT((ListaDeAulas[DIA]=HorárioDeAulas[[#Headers],[SEXTA-FEIRA]])*(ROUNDDOWN($B55,10)>=ROUNDDOWN(ListaDeAulas[HORA DE INÍCIO],10))*($B55<=ListaDeAulas[HORA DE FIM]),ListaDeAulas[EXCLUSIVO]),ListaDeAulas[EXCLUSIVO],0),2),0)","v":0},{"$f":"IFERROR(INDEX(ListaDeAulas[],MATCH(SUMPRODUCT((ListaDeAulas[DIA]=HorárioDeAulas[[#Headers],[SÁBADO]])*(ROUNDDOWN($B55,10)>=ROUNDDOWN(ListaDeAulas[HORA DE INÍCIO],10))*($B55<=ListaDeAulas[HORA DE FIM]),ListaDeAulas[EXCLUSIVO]),ListaDeAulas[EXCLUSIVO],0),2),0)","v":0}]
[null,"21:00:00",{"$f":"IFERROR(INDEX(ListaDeAulas[],MATCH(SUMPRODUCT((ListaDeAulas[DIA]=HorárioDeAulas[[#Headers],[DOMINGO]])*(ROUNDDOWN($B56,10)>=ROUNDDOWN(ListaDeAulas[HORA DE INÍCIO],10))*($B56<=ListaDeAulas[HORA DE FIM]),ListaDeAulas[EXCLUSIVO]),ListaDeAulas[EXCLUSIVO],0),2),0)","v":0},{"$f":"IFERROR(INDEX(ListaDeAulas[],MATCH(SUMPRODUCT((ListaDeAulas[DIA]=HorárioDeAulas[[#Headers],[SEGUNDA-FEIRA]])*(ROUNDDOWN($B56,10)>=ROUNDDOWN(ListaDeAulas[HORA DE INÍCIO],10))*($B56<=ListaDeAulas[HORA DE FIM]),ListaDeAulas[EXCLUSIVO]),ListaDeAulas[EXCLUSIVO],0),2),0)","v":0},{"$f":"IFERROR(INDEX(ListaDeAulas[],MATCH(SUMPRODUCT((ListaDeAulas[DIA]=HorárioDeAulas[[#Headers],[TERÇA-FEIRA]])*(ROUNDDOWN($B56,10)>=ROUNDDOWN(ListaDeAulas[HORA DE INÍCIO],10))*($B56<=ListaDeAulas[HORA DE FIM]),ListaDeAulas[EXCLUSIVO]),ListaDeAulas[EXCLUSIVO],0),2),0)","v":0},{"$f":"IFERROR(INDEX(ListaDeAulas[],MATCH(SUMPRODUCT((ListaDeAulas[DIA]=HorárioDeAulas[[#Headers],[QUARTA-FEIRA]])*(ROUNDDOWN($B56,10)>=ROUNDDOWN(ListaDeAulas[HORA DE INÍCIO],10))*($B56<=ListaDeAulas[HORA DE FIM]),ListaDeAulas[EXCLUSIVO]),ListaDeAulas[EXCLUSIVO],0),2),0)","v":0},{"$f":"IFERROR(INDEX(ListaDeAulas[],MATCH(SUMPRODUCT((ListaDeAulas[DIA]=HorárioDeAulas[[#Headers],[QUINTA-FEIRA]])*(ROUNDDOWN($B56,10)>=ROUNDDOWN(ListaDeAulas[HORA DE INÍCIO],10))*($B56<=ListaDeAulas[HORA DE FIM]),ListaDeAulas[EXCLUSIVO]),ListaDeAulas[EXCLUSIVO],0),2),0)","v":0},{"$f":"IFERROR(INDEX(ListaDeAulas[],MATCH(SUMPRODUCT((ListaDeAulas[DIA]=HorárioDeAulas[[#Headers],[SEXTA-FEIRA]])*(ROUNDDOWN($B56,10)>=ROUNDDOWN(ListaDeAulas[HORA DE INÍCIO],10))*($B56<=ListaDeAulas[HORA DE FIM]),ListaDeAulas[EXCLUSIVO]),ListaDeAulas[EXCLUSIVO],0),2),0)","v":0},{"$f":"IFERROR(INDEX(ListaDeAulas[],MATCH(SUMPRODUCT((ListaDeAulas[DIA]=HorárioDeAulas[[#Headers],[SÁBADO]])*(ROUNDDOWN($B56,10)>=ROUNDDOWN(ListaDeAulas[HORA DE INÍCIO],10))*($B56<=ListaDeAulas[HORA DE FIM]),ListaDeAulas[EXCLUSIVO]),ListaDeAulas[EXCLUSIVO],0),2),0)","v":0}]

{"sheet":"Lista de Aulas","index":1,"n_rows":10,"n_cols":8,"rows_kept":10,"merged":[[0,1,0,5],[0,6,0,7]]}
[null,"LISTA DE AULAS",{"$nulls":4},"Horário de Aulas"]
[null,"AULA","ID","DIA","LOCALIZAÇÃO","HORA DE INÍCIO","HORA DE FIM","EXCLUSIVO"]
[null,"Escrita Técnica","ETEC","SEGUNDA-FEIRA","Edifício A","13:00:00","14:00:00",{"$f":"ROW()-ROW(ListaDeAulas[[#Headers],[EXCLUSIVO]])","v":1}]
[null,"Escrita Técnica","ETEC","QUARTA-FEIRA","Edifício A","13:00:00","14:00:00",{"$f":"ROW()-ROW(ListaDeAulas[[#Headers],[EXCLUSIVO]])","v":2}]
[null,"Discurso e Oratória","DO-111","SEGUNDA-FEIRA","Edifício B","16:00:00","17:00:00",{"$f":"ROW()-ROW(ListaDeAulas[[#Headers],[EXCLUSIVO]])","v":3}]
[null,"Saúde e Bem-estar","SBE","TERÇA-FEIRA","Edifício B","11:00:00","12:00:00",{"$f":"ROW()-ROW(ListaDeAulas[[#Headers],[EXCLUSIVO]])","v":4}]
[null,"Saúde e Bem-estar","SBE","QUINTA-FEIRA","Edifício B","11:00:00","12:00:00",{"$f":"ROW()-ROW(ListaDeAulas[[#Headers],[EXCLUSIVO]])","v":5}]
[null,"Álgebra","MAT","SEGUNDA-FEIRA","Edifício C","08:10:00","09:15:00",{"$f":"ROW()-ROW(ListaDeAulas[[#Headers],[EXCLUSIVO]])","v":6}]
[null,"Álgebra","MAT","QUARTA-FEIRA","Edifício C","08:10:00","09:15:00",{"$f":"ROW()-ROW(ListaDeAulas[[#Headers],[EXCLUSIVO]])","v":7}]
[null,"Álgebra","MAT","SEXTA-FEIRA","Edifício C","08:10:00","09:15:00",{"$f":"ROW()-ROW(ListaDeAulas[[#Headers],[EXCLUSIVO]])","v":8}]